{"text_format":"1","workbook":"xlsx","n_sheets":1,"sheets":["catálogo"],"not_rendered":{"charts":0,"images":1,"macros":1,"external_links":0,"defined_names":2,"comments":0,"pivot_tables":0},"unopened":[],"bounds":{"document_bytes":16777216,"sheet_cells":100000,"rows_first":2000,"rows_last":500,"rows_between":2000,"halvings":0,"cell_chars":16384,"cell_head_chars":4096},"cells_cut":0,"cells_raw":0,"read":"whole","date_system":"1900"}

{"sheet":"catálogo","index":0,"n_rows":453,"n_cols":10,"rows_kept":453,"cut":false,"hidden":false,"merged":[[435,0,435,1],[437,5,437,6],[452,0,453,4],[452,5,453,8],[412,0,412,1],[420,0,421,4],[420,5,421,8],[428,5,428,6],[430,0,430,1],[433,5,433,6],[398,5,398,6],[400,0,400,1],[405,5,405,6],[407,0,407,1],[408,0,408,1],[410,5,410,6],[372,0,373,4],[372,5,373,8],[389,5,389,6],[391,0,392,4],[391,5,392,8],[393,0,393,1],[338,5,338,6],[340,0,340,1],[345,5,345,6],[347,0,347,1],[355,0,356,4],[355,5,356,8],[319,0,320,4],[319,5,320,8],[327,5,327,6],[329,0,329,1],[335,0,336,4],[335,5,336,8],[299,5,299,6],[301,0,301,1],[303,0,304,4],[303,5,304,8],[309,5,309,6],[311,0,311,1],[264,5,264,6],[266,0,266,1],[269,0,270,4],[269,5,270,8],[285,0,286,4],[285,5,286,8],[200,0,200,1],[212,0,213,4],[212,5,213,8],[230,0,231,4],[230,5,231,8],[249,0,250,4],[249,5,250,8],[174,0,175,4],[174,5,175,8],[176,0,176,1],[195,0,196,4],[195,5,196,8],[198,5,198,6],[131,0,131,1],[142,0,143,4],[142,5,143,8],[158,0,159,4],[158,5,159,8],[172,5,172,6],[110,0,110,1],[115,5,115,6],[117,0,117,1],[124,0,125,4],[124,5,125,8],[129,5,129,6],[85,0,85,1],[89,0,90,4],[89,5,90,8],[105,0,106,4],[105,5,106,8],[108,5,108,6],[53,0,53,1],[68,0,69,4],[68,5,69,8],[75,5,75,6],[77,0,77,1],[83,5,83,6],[43,3,43,8],[46,0,47,4],[46,5,47,8],[48,0,48,1],[49,0,49,1],[51,4,51,6],[34,5,34,6],[35,5,35,6],[36,5,36,6],[37,5,37,6],[40,5,40,7],[41,5,41,7],[25,5,25,6],[26,5,26,6],[27,5,27,6],[28,5,28,6],[32,5,32,6],[33,5,33,6],[19,5,19,6],[20,5,20,6],[21,5,21,6],[22,5,22,6],[23,5,23,6],[24,5,24,6],[13,5,13,6],[14,5,14,6],[15,5,15,6],[16,5,16,6],[17,5,17,6],[18,5,18,6],[7,6,8,6],[7,7,8,7],[7,8,8,8],[10,4,10,8],[11,5,11,6],[12,5,12,6],[0,3,0,8],[1,2,2,2],[1,3,1,6],[1,7,1,8],[2,3,3,6],[2,7,2,8],[3,7,3,8],[7,0,8,0],[7,1,8,1],[7,2,8,2],[7,3,8,3],[7,4,8,4],[7,5,8,5],[4,3,4,6],[4,7,4,8],[5,0,5,2],[5,3,5,4],[5,5,5,8],[6,0,6,8]]}
[null,null,null,"EMPRESA: "]
[null,null,null,"LICITACIÓN No.:  UMSNH/LPN-03/ PROEXES-2016/2016",null,null,null,"FECHA:"]
[null,null,null,"DESCRIPCIÓN DE LA OBRA:  Instituto de Investigaciones Químico Biológicas, Edificio de Aulas, Laboratorios y Cubículos."]
[null,null,null,null,null,null,null,"HOJA:"]
[null,null,"MORELIA, MICHOACÁN.  ","UBICACIÓN DE LA OBRA: Ciudad Universitaria"]
["MONTO TOTAL DE LA PROPOSICIÓN SIN I.V.A.:",null,null,{"$f":"I40","v":0},null,"(MONTO TOTAL DE LA PROPOSICIÓN SIN I.V.A. Y CON LETRA)"]
[]
["No.","Clave","DESCRIPCIÓN DEL CONCEPTO","Unidad","Cantidad","Precio unitario con letra","Precio Unitario","Importe en ($)","% de incidencia"]
[]
[]
[null,null,null,null,"  Instituto de Investigaciones Químico Biológicas, Edificio de Aulas, Laboratorios y Cubículos."]
[null,null,null,null,"FTE 0001 ","EDIFICIO"]
[null,null,null,null,"PARTIDA","RESUMEN",null,"% de incidencia","SUBTOTAL"]
[null,null,null,null,{"$f":"A50","v":"PAR0001"},{"$f":"C50","v":"PRELIMINARES"},null,"%",{"$f":"H52","v":0}]
[null,null,null,null,{"$f":"A54","v":"PAR0002"},{"$f":"C54","v":"CIMENTACIÓN"},null,"%",{"$f":"H76","v":0}]
[null,null,null,null,{"$f":"A78","v":"PAR0003"},{"$f":"C78","v":"DRENAJE"},null,"%",{"$f":"H84","v":0}]
[null,null,null,null,{"$f":"A86","v":"PAR0004"},{"$f":"C86","v":" ALBAÑILERÍA"},null,"%",{"$f":"H109","v":0}]
[null,null,null,null,{"$f":"A111","v":"PAR0005"},{"$f":"C111","v":"TABLEROS DE YESO Y TABLACEMENTO"},null,"%",{"$f":"H116","v":0}]
[null,null,null,null,{"$f":"A118","v":"PAR0006"},{"$f":"C118","v":"ESTRUCTURA"},null,"%",{"$f":"H130","v":0}]
[null,null,null,null,{"$f":"A132","v":"PAR0007"},{"$f":"C132","v":"INSTALACIÓN HIDRÁULICA"},null,"%",{"$f":"H173","v":0}]
[null,null,null,null,{"$f":"A177","v":"PAR0008"},{"$f":"C177","v":"INSTALACIÓN SANITARIA"},null,"%",{"$f":"H199","v":0}]
[null,null,null,null,{"$f":"A201","v":"PAR0009"},{"$f":"C201","v":" INSTALACIÓN ELÉCTRICA E ILUMINACIÓN"},null,"%",{"$f":"H265","v":0}]
[null,null,null,null,{"$f":"A267","v":"PAR0010"},{"$f":"C267","v":" INSTALACIÓN DE VOZ Y DATOS"},null,"%",{"$f":"H300","v":0}]
[null,null,null,null,{"$f":"A302","v":"PAR0011"},{"$f":"C302","v":"ACABADOS Y RECUBRIMIENTOS"},null,"%",{"$f":"H310","v":0}]
[null,null,null,null,{"$f":"A312","v":"PAR0012"},{"$f":"C312","v":"COLOCACIONES"},null,"%",{"$f":"H328","v":0}]
[null,null,null,null,{"$f":"A330","v":"PAR0013"},{"$f":"C330","v":"ALUMINIO, VIDRIOS, DOMOS Y POLICARBONATO"},null,"%",{"$f":"H339","v":0}]
[null,null,null,null,{"$f":"A341","v":"PAR0014"},{"$f":"C341","v":"HERRERÍA"},null,"%",{"$f":"H346","v":0}]
[null,null,null,null,{"$f":"A348","v":"PAR0015"},{"$f":"C348","v":"CISTERNA"},null,"%",{"$f":"H390","v":0}]
[null,null,null,null,{"$f":"A394","v":"PAR0016"},{"$f":"C394","v":"ACOMETIDA ELÉCTRICA"},null,"%",{"$f":"H399","v":0}]
[null,null,null,null,{"$f":"A401","v":"PAR0017"},{"$f":"C401","v":" LIMPIEZAS"},null,"%",{"$f":"H406","v":0}]
[null,null,null,null,null,null,null,"SUBTOTAL FTE 0001:",{"$f":"SUM(I14:I30)","v":0}]
[]
[null,null,null,null,"FTE 0002 ","OBRA EXTERIOR"]
[null,null,null,null,"PARTIDA","RESUMEN",null,"% de incidencia","SUBTOTAL"]
[null,null,null,null,{"$f":"A409","v":"PAR0018"},{"$f":"C409","v":"PRELIMINARES"},null,"%",{"$f":"H411","v":0}]
[null,null,null,null,{"$f":"A413","v":"PAR0019"},{"$f":"C413","v":"CIMENTACIÓN"},null,"%",{"$f":"H429","v":0}]
[null,null,null,null,{"$f":"A431","v":"PAR0020"},{"$f":"C431","v":"ALBAÑILERÍA"},null,"%",{"$f":"H434","v":0}]
[null,null,null,null,{"$f":"A436","v":"PAR0021"},{"$f":"C436","v":"LIMPIEZAS"},null,"%",{"$f":"H438","v":0}]
[null,null,null,null,null,null,null,"SURTOTAL FTE 0002:",{"$f":"SUM(I35:I38)","v":0}]
[null,null,null,null,null,null,null,"TOTAL FTE 0001 Y FNTE 0002:",{"$f":"I31+I39","v":0}]
[null,null,null,null,null,"I.V.A.:",null,null,{"$f":"ROUND(I40*0.16,2)","v":0}]
[null,null,null,null,null,"TOTAL:",null,null,{"$f":"SUM(I40:I41)","v":0}]
[]
[null,null,null,"(MONTO TOTAL DE LA PROPOSICIÓN CON LETRA)"]
[]
[]
["Nombre de la empresa",null,null,null,null,"Representante legal"]
[]
["FTE 0001",null,"EDIFICIO"]
["PAR0001",null,"PRELIMINARES"]
[1,"E05-0021"," TRAZO y NIVELACIÓN de terreno con TRANSITO y nivel. (área de edificios)","m2",370.25,null,null,{"$f":"E51*G51","v":0},"%"]
[null,null,null,null,"SUBTOTAL DE PRELIMINARES:",null,null,{"$f":"SUM(H51:H51)","v":0}]
[]
["PAR0002",null,"CIMENTACIÓN"]
[2,"E06-005","EXCAVACIÓN a cielo abierto en  terreno tipo \"B\" zona \"A\" empleando MEDIOS MECÁNICOS, hasta profundidades de 2.50 m, incluye afine de taludes. (Medido compacto)","m3",1080.75,null,null,{"$f":"E55*G55","v":0},"%"]
[3,"E06-002","EXCAVACIÓN A MANO en terreno tipo \"B\" en cepas de 0.00 a 2.00 m de profundidad,  incluye afine de taludes y traspaleo. (Medido compacto)","m3",10.81,null,null,0,"%"]
[4,"E05-0121","ACARREO de material producto de EXCAVACIÓN o ESCOMBRO fuera de la obra en camión de 7 m3 de  capacidad, incluye carga con MÁQUINA y descarga en banco de desperdicio a cualquier distancia. (Medido compacto)","m3",1111.4100000000001,null,null,0,"%"]
[5,"E05-0260","COMPACTACIÓN de TERRENO NATURAL al 90% de su PVSM, utilizando compactador de placa vibratoria (bailarina).","m2",370.25,null,null,0,"%"]
[6,"E05-041","PLANTILLA de concreto simple f'c= 100 kg/cm2 de 6 cm de espesor, incluye cimbra común en fronteras y fabricación, vaciado, acarreo y picado de concreto.","m2",162.41999999999999,null,null,0,"%"]
[7,"E02-003","Suministro y colocación de  ACERO de REFUERZO del No. 3 (3/8\") de diámetro fy= 4,200 kg/cm2 en CIMENTACIÓN, incluye habilitado, armado, ganchos, dobleces, traslapes, silletas, desperdicio, alambre recocido, fletes y acarreo.","kg",2731.72,null,null,0,"%"]
[8,"E02-004","Suministro y colocación de  ACERO de REFUERZO del No. 4 (1/2\") de diámetro fy= 4,200 kg/cm2 en CIMENTACIÓN, incluye habilitado, armado, ganchos, dobleces, traslapes, silletas, desperdicio, alambre recocido, fletes y acarreo.","kg",236.65,null,null,0,"%"]
[9,"E02-005","Suministro y colocación de  ACERO de REFUERZO del No. 5 (5/8\") de diámetro fy= 4,200 kg/cm2 en CIMENTACIÓN, incluye  habilitado, armado, ganchos, dobleces,  traslapes,  silletas, desperdicio, alambre recocido, fletes y acarreo.","kg",579.20000000000005,null,null,0,"%"]
[10,"E02-006","Suministro y colocación de  ACERO de REFUERZO del No. 6 (3/4\") de diámetro fy= 4,200 kg/cm2 en CIMENTACIÓN, incluye  habilitado, armado, ganchos, dobleces,  traslapes,  silletas, desperdicio, alambre recocido, fletes y acarreo.","kg",3783.24,null,null,0,"%"]
[11,"E01-003","CIMBRA y descimbra en ZAPATAS y LOSAS de CIMENTACIÓN, acabado común con duela de madera de pino de 2a. y obra  falsa de madera de pino de 3a., medida por superficie de contacto, incluye materiales, mano de obra, habilitado, nivelado, desmoldante (no aceite quemado), desperdicios y cambio a la siguiente posición.","m2",54.89,null,null,0,"%"]
[12,"E01-021","CIMBRA y descimbra en DADOS y CONTRATRABES de CIMENTACIÓN acabado común con duela de madera de pino de 2a. y obra falsa de madera de pino de 3a., medida por superficie de contacto, incluye materiales, mano de obra, habilitado, nivelado, desmoldante (no aceite quemado), desperdicios y cambio a la siguiente posición.","m2",327.02999999999997,null,null,0,"%"]
[13,"E03-141","CONCRETO PREMEZCLADO f'c= 250 kg/cm2 RESISTENCIA NORMAL, en CIMENTACIÓN, tamaño máximo del agregado 19 mm (3/4\"), revenimiento de 10 a 12 cm, incluye materiales, mano de obra, bombeo, vibrado, membrana de curado, emulsión acuosa de copolimeros como adhesivo en juntas frías entre concreto viejo y nuevo, equipo y la herramienta necesaria.","m3",65.48,null,null,0,"%"]
[14,"E03-041","CONCRETO HECHO EN OBRA f'c= 250 kg/cm2 RESISTENCIA NORMAL empleando grava triturada, tamaño máximo del agregado  3/4\" en CIMENTACIÓN, revenimiento de 12 a 14 cm, incluye materiales, fabricación en revolvedora, acarreo y vaciado en carretilla, picado, vibrado y desperdicio.","m3",6.55,null,null,0,"%"]
[15,"E11-3011","ENRASE con tabicón de concreto 8x12x26 cm de 12 cm de  espesor, asentado con mortero cemento-arena 1:4.","m2",336.03,null,null,0,"%"]
["Nombre de la empresa",null,null,null,null,"Representante legal"]
[]
[16,"E10-085","CADENA o CASTILLO de concreto f'c= 200 kg/cm2 de 15 x 15 cm armado con 4 varillas del No. 3 (3/8\") y estribos del No. 2  (1/4\") a cada 15 cm, incluye cimbra común,  ganchos, traslapes, anclajes y cruces de varilla y fabricación, acarreo, vaciado y picado de concreto.","m",181.5,{"$f":"PESOSMN(G71)","v":"( PESO 00/100 M.N.)"},null,{"$f":"E71*G71","v":0},"%"]
[17,"E10-083","CADENA o CASTILLO de concreto f'c= 200 kg/cm2 de 15 x 20 cm armado con 4 varillas del No. 3 (3/8\") y estribos No. 2 (1/4\")  a cada 20 cm, incluye cimbra común, ganchos, traslapes, anclajes y cruces de varilla y fabricación, vaciado y picado de concreto.","m",224.02,null,null,0,"%"]
[18,"E05-0212","RELLENO y ACOMODO con pisón mecánico (bailarina) en capas de 20 cm utilizando  material de banco (FILTRO), incluye agua,  traspaleo, extendido y acarreo a una distancia de 20.00 m. (Medir compacto)","m3",870.11,null,null,0,"%"]
[19,"E05-0225","Suministro y RELLENO de material inerte para BASE HIDRÁULICA compactado al 95% de su PVSM con equipo mecánico en capas de 20 cm de espesor, incluye acarreo dentro de la obra, agua, papeos y extendido. Mezcla al 100% a base de material pétreo clasificado de 1 1/2\" a finos y tepetate en proporción 80:20. (Medir compacto)","m3",55.54,null,null,0,"%"]
[20,"E15-1093","Suministro y aplicación de IMPERMEABILIZANTE asfáltico EMULSIONADO en CIMENTACIÓN a base de 1 capa a razón de 1.0 lt/m2,  incluye aplicación de imprimador para emulsiones asfálticas a razón de 20 m2/lt en dilución.","m2",1076.44,null,null,0,"%"]
[null,null,null,null,null,"SUBTOTAL DE CIMENTACIÓN:",null,{"$f":"SUM(H75:H75)","v":0}]
[]
["PAR0003",null,"DRENAJE"]
[21,"E06-002","EXCAVACIÓN A MANO en terreno tipo \"B\" en cepas de 0.00 a 2.00 m de profundidad,  incluye afine de taludes y traspaleo. (Medido compacto)","m3",24.76,null,null,{"$f":"E79*G79","v":0},"%"]
[22,"E17-062","Suministro y tendido de TUBO de P.V.C. SANITARIO tipo ANGER 1 campana de 6\" (150 mm) de diámetro de NORMA NMX-E-199/1, incluye cama de arena de 10 cm de espesor promedio.","m",50.57,null,null,0,"%"]
[23,"E08-001","REGISTRO SANITARIO de 40 x 60 x 100 cm (interior) elaborado a base de tabicón de concreto de 12 cm de espesor,  junteado  con mortero cemento-arena 1:5 acabado pulido con cemento gris, plantilla de concreto simple f'c= 100 kg/cm2, incluye tapa metálica colada con concreto f'c= 150 kg/cm2.","pza",5,null,null,0,"%"]
[24,"E05-02505A","RELLENO y COMPACTADO con pisón de MANO y agua en  capas de 20 cm utilizando MATERIAL PRODUCTO de EXCAVACIÓN, incluye traspaleo, extendido y acarreo a cualquier distancia.(Medido compacto)","m3",22.25,null,null,0,"%"]
[25,"E05-0121","ACARREO de material producto de EXCAVACIÓN o ESCOMBRO fuera de la obra en camión de 7 m3 de  capacidad, incluye carga con MÁQUINA y descarga en banco de desperdicio a cualquier distancia. (Medido compacto)","m3",2.5099999999999998,null,null,0,"%"]
[null,null,null,null,null,"SUBTOTAL DE DRENAJE:",null,{"$f":"SUM(H79:H83)","v":0}]
[]
["PAR0004",null," ALBAÑILERÍA"]
[26,"E12-055","PISO de CONCRETO armado  f'c= 150 kg/cm2  de 10 cm  de espesor, armado con malla electrosoldada 66-1010, acabado PULIDO rayado y/o escobillado con cemento gris y juntas frías a hueso acabadas con volteador, incluye cimbra común en fronteras, nivelación, compactación y fabricación, acarreo, vaciado y extendido de concreto.","m2",96.72,null,null,{"$f":"E87*G87","v":0},"%"]
[27,"E12-005","FIRME de concreto ARMADO f'c= 150 kg/cm2, de 10 cm de espesor acabado planeado para recibir piso, incluye cimbra común en fronteras, malla electrosoldada 66-1010 y fabricación, acarreo, vaciado y extendido de concreto.","m2",214.85,null,null,0,"%"]
[28,"E11-001","MURO de TABIQUE de barro rojo recocido 6-12-24 de 12 cm de espesor, asentado  con mezcla  mortero envasado-arena  1:3,  acabado común, cualquier altura y nivel, incluye acarreo de material a cualquier distancia.","m2",299.39,null,null,0,"%"]
["Nombre de la empresa",null,null,null,null,"Representante legal"]
[]
[29,"E10-083","CADENA o CASTILLO de concreto f'c= 200 kg/cm2 de 15 x 20 cm armado con 4 varillas del No. 3 (3/8\") y estribos No. 2 (1/4\")  a cada 20 cm, incluye cimbra común, ganchos, traslapes, anclajes y cruces de varilla y fabricación, vaciado y picado de concreto.","m",149.13999999999999,null,null,{"$f":"E92*G92","v":0},"%",35159.760000000002]
[30,"E10-085","CADENA o CASTILLO de concreto f'c= 200 kg/cm2 de 15 x 15 cm armado con 4 varillas del No. 3 (3/8\") y estribos del No. 2  (1/4\") a cada 15 cm, incluye cimbra común,  ganchos, traslapes, anclajes y cruces de varilla y fabricación, acarreo, vaciado y picado de concreto.","m",173.36,null,null,0,"%"]
[31,"E10-0650","CADENA o CASTILLO de concreto f'c= 200 kg/cm2 de 15 x 45 cm armado con 6 varillas del No. 3 (3/8\") y estribos No. 2 (1/4\")  a cada 15 cm, incluye cimbra común, cruces de varilla y fabricación, vaciado y picado de concreto.","m",5.0599999999999996,null,null,0,"%"]
[32,"E10-0654","CASTILLO de concreto f´c=200 kg/cm2 de 15 x 40 cm armado con 6 varillas del No. 3 (3/8\") y estribos del No. 2 (1/4\") a cada 15 cm, incluye cimbra común, cruces de varilla y fabricación, vaciado, acarreo, vibrado y picado de concreto.","m",2.66,null,null,0,"%"]
[33,"E10-0191","CADENA o CASTILLO de concreto f'c= 200 kg/cm2 de 15 x 15 cm armada con ARMEX 15 x 15-4, incluye cimbra común, cruces, traslapes, anclajes de acero y fabricación, vaciado y picado de concreto.","m",81.09,null,null,0,"%"]
[34,"E13-020","REPELLADO a plomo y regla metálica con mortero cemento-arena  1:3, de 2 cm de espesor promedio a cualquier nivel y altura, incluye boquillas y elevación de materiales.","m2",81.599999999999994,null,null,0,"%"]
[35,"E13-045","APLANADO FINO de mezcla sobre MUROS a cualquier nivel y altura, incluye repellado de 1.5 cm de espesor promedio a plomo y regla metálica con mezcla mortero envasado-arena 1:3 y fino de 0.5 cm con mortero cemento-arena cernida 1:4, boquillas con regla metálica y elevación de materiales.","m2",377.54,null,null,0,"%"]
[36,"E13-093","PULIDO de SUPERFICIES de concreto aparente en COLUMNAS, MUROS y/o TRABES a cualquier altura y nivel con pasta cemento gris-compuesto liquido blanco de resinas estireno-acrílicas en dispersión para concreto nuevo-viejo en proporción 1:1 con agua, incluye rebabeo y retiro de membrana de curado, resanado, lijado de la superficie y aplicación en sustrato de compuesto liquido blanco de resinas estireno-acrílicas en dispersión para concreto nuevo-viejo en proporción 1:2 con agua.","m2",197.22,null,null,0,"%"]
[37,"E13-5101A","Suministro y colocación de JUNTA de muro con columna o trabe con placa de POLIESTIRENO expandido de 25 mm de espesor por 15 cm de  ancho, Incluye aplicación en junta de sellador a base de sellador de poliuretano para evitar filtraciones.","m",51.26,null,null,0,"%"]
[38,"E13-8520","RESANADO de RANURA de 12 cm de ancho promedio para paso de tubería de instalaciones en muros de tabique de barro o tabicón a cualquier altura y nivel , incluye mano de obra, mezcla mortero envasado-arena 1:3, metal desplegado y clavo para concreto.","m",28.69,null,null,0,"%"]
[39,"E23-6012B","CONSTRUCCIÓN de MESA de 0.60 m de ancho y 10 cm de espesor, elaborada a base de concreto f'c= 200 kg/cm2  y armada con varilla del No. 3 (3/8\") a cada 20 cm ambos sentidos, incluye faldón de concreto de 10 cm de espesor x 30 cm de alto, cimbra común, elaboración, acarreo, colado y curado de concreto, vano para LAVABOS TIPO OVALYN o TARJA, pasos para  instalaciones y descimbrado.","m",5.0599999999999996,null,null,0,"%"]
[40,"E12-225","CONSTRUCCIÓN de ESCALÓN de concreto f'c= 200 kg/cm2  de 17 cm de peralte y 30 cm de huella, armado con varilla del No. 3 (3/8\") y estribos del No. 2 (1/4\") a cada 15 cm colado en el lugar, incluye trazo, cimbra aparente y fabricación, acarreo, colado, vibrado y curado de concreto.","m",1.98,null,null,0,"%"]
[41,"E12-225A","CONSTRUCCIÓN de ESCALÓN de concreto f'c= 200 kg/cm2 de 10 cm de peralte y 1.10 m de ancho, armado con malla electrosoldada 66-1010, incluye trazo, cimbra acabado común en frontera de peralte y acabado pulido con cemento gris.","m",9.68,null,null,0,"%"]
[42,"E10-0825","CONSTRUCCIÓN de NARIZ de concreto f'c= 150 kg/cm2, incluye solo cimbra aparente, chaflanes y acero 0.8 kg/ml para remate.","m",7.92,null,null,0,"%"]
["Nombre de la empresa",null,null,null,null,"Representante legal"]
[]
[43,"E10-201A","Suministro y colocación de REGISTRO ELÉCTRICO DE BAJA TENSIÓN EN ARROYO TIPO 1 (CFE RBTA-1) de concreto prefabricado de 0.50 x 0.80 m y 0.75 m de profundidad , incluye nivelación y plomeo y cama de grava volcánica para drenaje de aguas.","pza",2,null,null,{"$f":"E108*G108","v":0},"%"]
[null,null,null,null,null,"SUBTOTAL DE  ALBAÑILERÍA:",null,{"$f":"SUM(H108)","v":0}]
[]
["PAR0005",null,"TABLEROS DE YESO Y TABLACEMENTO"]
[44,"E13-758","Suministro y colocación de FALSO PLAFÓN LISO de TABLAROCA con suspensión oculta a cualquier altura y nivel, colganteado del lecho bajo de la losa con anclaje HILTI y alambre galvanizado calibre 14, incluye canal listón, ángulo de amarrre, canaleta de carga y acabado en las uniones con perfacinta y redimix.","m2",157.51,null,null,{"$f":"E112*G112","v":0},"%"]
[45,"E13-758A","Suministro y colocación de FALSO PLAFÓN LISO de TABLAROCA tipo ANTI-MOHO (RESISTENTE AL AGUA) con suspensión oculta a cualquier altura y nivel, colganteado del lecho bajo de la losa con anclaje HILTI y alambre galvanizado calibre 14, incluye canal listón, ángulo de amarrre, canaleta de carga y acabado en las uniones con perfacinta y redimix.","m2",38.82,null,null,0,"%"]
[46,"E11-205C","Suministro y colocación de LAMBRÍN para FALDONES Y RECUBRIMIENTOS de TABLACEMENTO 13-63 a cualquier nivel y altura sujeto a bastidor de perfiles de acero estructural existente, 1 placa de tablacemento de 13 mm, cinta de refuerzo de 4\", Basecoat y  tornillería autorroscante de 26.4 mm, incluye desperdicios.","m2",6.73,null,null,0,"%"]
[null,"E13-5105","Suministro y aplicación de SELLADOR elástico de POLIURETANO en juntas de 6 x 5 mm promedio para evitar filtraciones, incluye limpieza de la superficie.","m",32.07,null,null,0,"%"]
[null,null,null,null,null,"SUBTOTAL DE TABLEROS DE YESO Y TABLACEMENTO:",null,{"$f":"SUM(H112:H115)","v":0}]
[]
["PAR0006",null,"ESTRUCTURA"]
[47,"E02-022","Suministro y colocación de ACERO de REFUERZO del No. 3 (3/8\") de diámetro fy= 4,200 kg/cm2 en ESTRUCTURA, incluye habilitado, armado, ganchos, dobleces, traslapes, silletas, desperdicio, alambre recocido, fletes y acarreo.","kg",4933.3900000000003,null,null,{"$f":"E119*G119","v":0},"%"]
[48,"E02-025","Suministro y colocación de ACERO de REFUERZO del No. 5 (5/8\") de diámetro fy= 4,200 kg/cm2 en ESTRUCTURA, incluye habilitado, armado, ganchos, dobleces, traslapes, silletas, desperdicio, alambre recocido, fletes y acarreo.","kg",441.45,null,null,0,"%"]
[49,"E02-026","Suministro y colocación de  ACERO de REFUERZO del No. 6 (3/4\") de diámetro fy= 4,200 kg/cm2 en ESTRUCTURA, incluye habilitado, armado, ganchos, dobleces, traslapes, silletas, desperdicio, alambre recocido, fletes y acarreo.","kg",4214.2299999999996,null,null,0,"%"]
[50,"E02-028","Suministro y colocación de  ACERO de REFUERZO del No. 8 (1\") de diámetro fy= 4,200 kg/cm2 en ESTRUCTURA, incluye habilitado, armado, ganchos, dobleces, traslapes, silletas, desperdicio, alambre recocido, fletes y acarreo.","kg",314.82,null,null,0,"%"]
[51,"E01-053","CIMBRA de madera de triplay de pino de 16 mm y obra  falsa de madera de pino de 3a., ACABADO APARENTE en MUROS Y COLUMNAS medida por superficie de contacto a cualquier altura y nivel, incluye materiales, mano de obra, habilitado, desperdicio, nivelado, plomeo, descimbrado, compuesto liquido a base de derivados parafinicos para evitar adherencia entre el concreto y su cimbra, chaflanes, frentes y cambio a la siguiente posición. (Máximo 4 usos)","m2",139.85,null,null,0,"%"]
[52,"E01-060","CIMBRA de madera de triplay de pino de 16 mm y obra  falsa de madera de pino de 3a.,  ACABADO APARENTE  en TRABES medida por superficie de contacto a cualquier altura y nivel, incluye materiales, mano de obra, habilitado, desperdicio, nivelado, plomeo, descimbra, compuesto liquido a base de derivados parafinicos para evitar adherencia entre el concreto y su cimbra, chaflanes y cambio a la siguiente posición. (Máximo 4 usos)","m2",183.1,null,null,0,"%"]
["Nombre de la empresa",null,null,null,null,"Representante legal"]
[]
[53,"E01-070","CIMBRA de madera de triplay de pino de 16 mm y obra  falsa de madera de pino de 3a.,  ACABADO APARENTE  en LOSAS medida por superficie de contacto a cualquier altura y nivel, incluye materiales, mano de obra, habilitado, desperdicio, nivelado, plomeo, compuesto liquido a base de derivados parafinicos para evitar adherencia entre el concreto y su cimbra, chaflanes y cambio a la siguiente posición. (Máximo 4 usos)","m2",321.68,null,null,{"$f":"E127*G127","v":0},"%"]
[54,"E03-145","CONCRETO PREMEZCLADO f'c= 250 kg/cm2 RESISTENCIA RÁPIDA, tamaño máximo del agregado 19 mm (3/4\"), revenimiento de 12 a 14 cm en ESTRUCTURA a cualquier nivel y altura, bombeado a cualquier nivel, incluye materiales, mano de obra, colado, vibrado, membrana de curado emulsionada, acelerante 24 ml/kg, emulsión acuosa de copolimeros como adhesivo en juntas frías entre concreto viejo y nuevo, equipo, herramienta necesaria y desperdicio.","m3",83.63,null,null,0,"%"]
[55,"E03-146","CONCRETO HECHO EN OBRA f'c= 250 kg/cm2 RESISTENCIA RÁPIDA, tamaño máximo del agregado 19 mm (3/4\"), revenimiento de 12 a 14 cm en ESTRUCTURA a cualquier nivel y altura, incluye materiales, mano de obra, elaboración, acarreo, vaciado y vibrado de concreto, membrana de curado emulsionada, acelerante 24 ml/kg, emulsión acuosa de copolimeros como adhesivo en juntas frías entre concreto viejo y nuevo, equipo, herramienta necesaria y desperdicio.","m3",8.36,null,null,0,"%"]
[null,null,null,null,null,"SUBTOTAL DE ESTRUCTURA:",null,{"$f":"SUM(H127:H129)","v":0}]
[]
["PAR0007",null,"INSTALACIÓN HIDRÁULICA"]
[56,"E16-460A","Suministro y tendido de TUBO de COBRE tipo \"M\" de 13 mm (1/2\") a cualquier nivel y altura, incluye mano de obra, ranuras, fijación de tubo, pasos y pruebas.","m",17.5,null,null,{"$f":"E133*G133","v":0},"%"]
[57,"E16-460B","Suministro y tendido de TUBO de COBRE tipo \"M\" de 19 mm (3/4\") a cualquier nivel y altura, incluye mano de obra, ranuras, fijación de tubo, pasos y pruebas.","m",6.07,null,null,0,"%"]
[58,"E16-460C","Suministro y tendido de TUBO de COBRE tipo \"M\" de 25 mm (1\") a cualquier nivel y altura, incluye mano de obra, ranuras, fijación de tubo, pasos y pruebas.","m",51.74,null,null,0,"%"]
[59,"E16-460D","Suministro y tendido de TUBO de COBRE tipo \"M\" de 32 mm (1 1/4\") a cualquier nivel y altura, incluye mano de obra, ranuras, fijación de tubo, pasos y pruebas.","m",19.91,null,null,0,"%"]
[60,"E16-461","Suministro y colocación a cualquier nivel y altura de CODO de COBRE de 90°x1/2\" (13 mm) cobre interior a cobre interior figura 707-90°, incluye mano de obra, ranuras, fijación de la pieza donde se requiera, soldadura, pasta fundente, lija y pruebas.","pza",11,null,null,0,"%"]
[61,"E16-462D","Suministro y colocación a cualquier nivel y altura de CODO de COBRE de 90°x3/4\" (19 mm) cobre interior a cobre interior figura 707-90°, incluye mano de obra, ranuras, fijación de la pieza donde se requiera, soldadura, pasta fundente, lija y pruebas.","pza",3,null,null,0,"%"]
[62,"E16-461B","Suministro y colocación a cualquier nivel y altura de CODO de COBRE de 90°x1\" (25 mm) cobre interior a cobre interior figura 707-90°, incluye mano de obra, ranuras, fijación de la pieza donde se requiera, soldadura, pasta fundente, lija y pruebas.","pza",5,null,null,0,"%"]
[63,"E16-463B","Suministro y colocación a cualquier nivel y altura de CODO de COBRE de 90°x1 1/4\" (32 mm) cobre interior a cobre interior figura 707-90°, incluye mano de obra, ranuras, fijación de la pieza donde se requiera, soldadura, pasta fundente, lija y pruebas.","pza",3,null,null,0,"%"]
[64,"E16-466A","Suministro y colocación a cualquier nivel y altura de CODO de COBRE de 45°x1\" (25 mm) cobre interior a cobre  interior figura 706-45°, incluye mano de obra, ranuras, fijación de la pieza donde se requiera, soldadura, pasta fundente, lija y pruebas.","pza",4,null,null,0,"%"]
[65,"E16-4612","Suministro y colocación a cualquier nivel y altura de TEE COBRE a cobre a cobre interiores de 1/2\" (13 mm) figura 711-T, incluye mano de obra, ranuras, fijación de la pieza donde se requiera, soldadura, pasta fundente, lija y pruebas.","pza",10,null,null,0,"%"]
["Nombre de la empresa",null,null,null,null,"Representante legal"]
[]
[66,"E16-462G","Suministro y colocación a cualquier nivel y altura de TEE COBRE a cobre a cobre interiores de 3/4\" (19 mm) figura 711-T, incluye mano de obra, ranuras, fijación de la pieza donde se requiera, soldadura, pasta fundente, lija y pruebas.","pza",3,null,null,{"$f":"E145*G145","v":0},"%"]
[67,"E16-4646","Suministro y colocación a cualquier nivel y altura de TEE COBRE a cobre a cobre interiores de 1\" (25 mm) figura 711-T, incluye mano de obra, ranuras, fijación de la pieza donde se requiera, soldadura, pasta fundente, lija y pruebas.","pza",4,null,null,0,"%"]
[68,"E16-4655","Suministro y colocación a cualquier nivel y altura de TEE COBRE a cobre a cobre interiores de 1 1/4\" (32 mm) figura 711-T, incluye mano de obra, ranuras, fijación de la pieza donde se requiera, soldadura, pasta fundente, lija y pruebas.","pza",6,null,null,0,"%"]
[69,"E16-4622","Suministro y colocación a cualquier nivel y altura de COPLE COBRE interior a cobre interior de 1/2\" (13 mm) de diámetro figura 700 o 701, incluye mano de obra, ranuras, fijación de la pieza donde se requiera, soldadura, pasta fundente, lija y pruebas.","pza",6,null,null,0,"%"]
[70,"E16-462F","Suministro y colocación a cualquier nivel y altura de COPLE COBRE interior a cobre interior de 3/4\" (19 mm) de diámetro figura 700 o 701, incluye mano de obra, ranuras, fijación de la pieza donde se requiera, soldadura, pasta fundente, lija y pruebas.","pza",2,null,null,0,"%"]
[71,"E16-461C","Suministro y colocación a cualquier nivel y altura de COPLE COBRE interior a cobre interior de 1\" (25 mm) de diámetro figura 700 o 701, incluye mano de obra, ranuras, fijación de la pieza donde se requiera, soldadura, pasta fundente, lija y pruebas.","pza",16,null,null,0,"%"]
[72,"E16-4652","Suministro y colocación a cualquier nivel y altura de COPLE COBRE interior a cobre interior de 1 1/4\" (32 mm) de diámetro figura 700, incluye mano de obra, ranuras, fijación de la pieza donde se requiera, soldadura, pasta fundente, lija y pruebas.","pza",7,null,null,0,"%"]
[73,"E16-4688","Suministro y colocación a cualquier nivel y altura de TAPÓN HEMBRA de COBRE de 1/2\" (13 mm) figura 717, incluye mano de obra, ranuras, fijación de la pieza donde se requiera, soldadura, pasta fundente, lija y pruebas.","pza",10,null,null,0,"%"]
[74,"E16-467","Suministro y colocación a cualquier nivel y altura de CONECTOR COBRE interior a hierro interior de 1/2\" (13 mm) de diámetro figura 703, incluye mano de obra, ranuras, fijación de la pieza donde se requiera, soldadura, pasta fundente, lija y pruebas.","pza",7,null,null,0,"%"]
[75,"E16-462A","Suministro y colocación a cualquier nivel y altura de CONECTOR COBRE interior a hierro interior de 3/4\" (19 mm) de diámetro figura 703, incluye mano de obra, ranuras, fijación de la pieza donde se requiera, soldadura, pasta fundente, lija y pruebas.","pza",2,null,null,0,"%"]
[76,"E16-463A","Suministro y colocación a cualquier nivel y altura de CONECTOR COBRE interior a hierro exterior de 1 1/4\" (32 mm) de diámetro figura 704  , incluye mano de obra, ranuras, fijación de la pieza donde se requiera, soldadura, pasta fundente, lija y pruebas.","pza",4,null,null,0,"%"]
[77,"E16-4645","Suministro y colocación a cualquier nivel y altura de REDUCCIÓN CAMPANA de COBRE de 1 1/4\" (32 mm) a 1\" (25 mm) cobre  interior a cobre  interior figura 701R, incluye mano de obra, ranuras, fijación de la pieza donde se requiera, soldadura, pasta fundente, lija y pruebas.","pza",2,null,null,0,"%"]
[78,"E16-4683","Suministro y colocación a cualquier nivel y altura de REDUCCIÓN BUSHING de COBRE de 1 1/4\" (32 mm) a 3/4\" (19 mm) cobre exterior a cobre  interior figura 7012, incluye mano de obra, ranuras, fijación de la pieza donde se requiera, soldadura, pasta fundente, lija y pruebas.","pza",1,null,null,0,"%"]
[79,"E16-4656","Suministro y colocación a cualquier nivel y altura de REDUCCIÓN BUSHING de COBRE de 3/4\" (19 mm) a 1/2\" (13 mm) cobre exterior a cobre  interior figura 7012, incluye mano de obra, ranuras, fijación de la pieza donde se requiera, soldadura, pasta fundente, lija y pruebas.","pza",7,null,null,0,"%"]
["Nombre de la empresa",null,null,null,null,"Representante legal"]
[]
[80,"E16-468","Suministro y colocación a cualquier nivel y altura de REDUCCIÓN BUSHING de COBRE de 1\" (25 mm) a 3/4\" (19 mm) cobre exterior a cobre  interior figura 7012, incluye mano de obra, ranuras, fijación de la pieza donde se requiera, soldadura, pasta fundente, lija y pruebas.","pza",2,null,null,{"$f":"E161*G161","v":0},"%"]
[81,"E16-4681","Suministro y colocación a cualquier nivel y altura de REDUCCIÓN BUSHING de COBRE de 1\" (25 mm) a 1/2\" (13 mm) cobre exterior a cobre  interior figura 7012, incluye mano de obra, ranuras, fijación de la pieza donde se requiera, soldadura, pasta fundente, lija y pruebas.","pza",4,null,null,0,"%"]
[82,"E16-4645B","Suministro y colocación a cualquier nivel y altura de REDUCCIÓN CAMPANA de COBRE de 1 1/4\" (32 mm) a 1/2\" (13 mm) cobre  interior a cobre  interior figura 7012R, incluye mano de obra, ranuras, fijación de la pieza donde se requiera, soldadura, pasta fundente, lija y pruebas.","pza",1,null,null,0,"%"]
[83,"E16-461E","Suministro y colocación a cualquier nivel y altura de TUERCA UNIÓN COBRE interior a cobre interior de 1\" (25 mm) figura 733, incluye mano de obra, ranuras, fijación de la pieza donde se requiera, soldadura, pasta fundente, lija y pruebas.","pza",1,null,null,0,"%"]
[84,"E16-463C","Suministro y colocación a cualquier nivel y altura de TUERCA UNIÓN COBRE interior a cobre interior de 1 1/4\" (32 mm) figura 733 , incluye mano de obra, ranuras, fijación de la pieza donde se requiera, soldadura, pasta fundente, lija y pruebas.","pza",1,null,null,0,"%"]
[85,"E16-4706","Suministro y colocación a cualquier nivel y altura de VÁLVULA de COMPUERTA SOLDABLE de 1 1/4\" (32 mm) figura 783, incluye mano de obra, ranuras, fijación de la pieza donde se requiera, soldadura, pasta fundente, lija y pruebas.","pza",2,null,null,0,"%"]
[86,"E16-1011","Suministro y colocación a cualquier nivel y altura de TINACO VERTICAL con salida de 38 mm (1 1/2\") 1,100 lt de capacidad de polietileno rotomoldeado.","pza",2,null,null,0,"%"]
[87,"E16-VAROSC01","Suministro y colocación a cualquier nivel y altura de VARILLA ROSCADA COMERCIAL de 3/8\" de acero galvanizado electrolíticamente (EN INSTALACIONES HIDRÁULICAS, GAS, AIRE COMPRIMIDO, AIRE ACONDICIONADO, VAPOR Y REFRIGERACIÓN), incluye cortes, desperdicios, ajustes y plomeos.","m",59,null,null,0,"%"]
[88,"E16-PERA01","Suministro y colocación a cualquier nivel y altura de COLGADOR metálico de BANDA TIPO PERA de 1/2\" acabado pregalvanizado (EN INSTALACIONES HIDRÁULICAS, GAS, AIRE COMPRIMIDO, AIRE ACONDICIONADO, VAPOR Y REFRIGERACIÓN), incluye tuercas para sujeción de varilla roscada de 3/8\", rondanas, taquetes de expansión para concreto duro y barreno con taladro.","pza",16,null,null,0,"%"]
[89,"E16-PERA02","Suministro y colocación a cualquier nivel y altura de COLGADOR metálico de BANDA TIPO PERA de 3/4\" acabado pregalvanizado (EN INSTALACIONES HIDRÁULICAS, GAS, AIRE COMPRIMIDO, AIRE ACONDICIONADO, VAPOR Y REFRIGERACIÓN), incluye tuercas para sujeción de varilla roscada de 3/8\", rondanas, taquetes de expansión para concreto duro y barreno con taladro.","pza",10,null,null,0,"%"]
[90,"E16-PERA03","Suministro y colocación a cualquier nivel y altura de COLGADOR metálico de BANDA TIPO PERA de 1\" acabado pregalvanizado (EN INSTALACIONES HIDRÁULICAS, GAS, AIRE COMPRIMIDO, AIRE ACONDICIONADO, VAPOR Y REFRIGERACIÓN), incluye tuercas para sujeción de varilla roscada de 3/8\", rondanas, taquetes de expansión para concreto duro y barreno con taladro.","pza",28,null,null,0,"%"]
[91,"E16-PERA04","Suministro y colocación a cualquier nivel y altura de COLGADOR metálico de BANDA TIPO PERA de 1 1/4\" acabado pregalvanizado (EN INSTALACIONES HIDRÁULICAS, GAS, AIRE COMPRIMIDO, AIRE ACONDICIONADO, VAPOR Y REFRIGERACIÓN), incluye tuercas para sujeción de varilla roscada de 3/8\", rondanas, taquetes de expansión para concreto duro y barreno con taladro.","pza",13,null,null,0,"%"]
[null,null,null,null,null,"SUBTOTAL DE INSTALACIÓN HIDRÁULICA:",null,{"$f":"SUM(H161:H172)","v":0}]
[]
["Nombre de la empresa",null,null,null,null,"Representante legal"]
[]
["PAR0008",null,"INSTALACIÓN SANITARIA"]
[92,"E17-0051","Suministro y tendido a cualquier altura y nivel de TUBO de P.V.C. SANITARIO de 2\" (51 mm) de NORMA NMX-E-199/1, incluye mano de obra, ranuras, fijación, pasos y pruebas.","m",47.7,null,null,{"$f":"E178*G178","v":0},"%"]
[93,"E17-0057","Suministro y tendido a cualquier altura y nivel de TUBO de P.V.C. SANITARIO de 4\" (100 mm) de NORMA NMX-E-199/1, incluye mano de obra, ranuras, fijación, pasos y pruebas.","m",29.34,null,null,0,"%"]
[94,"E17-0071","Suministro y colocación a cualquier altura y nivel de TUBO de P.V.C. SANITARIO de 4\" (100 mm) de NORMA NMX-E-199/1 para BAJANTES de AGUA PLUVIAL, incluye mano de obra, ranuras, fijación, conexión a registro, pasos  y pruebas.","m",35.74,null,null,0,"%"]
[95,"E17-0053","Suministro y colocación a cualquier altura y nivel de CODO de P.V.C. SANITARIO de 90° x 50 mm (2\") de diámetro CEMENTAR , incluye mano de obra, ranuras, fijación de la pieza donde se requiera y pruebas.","pza",22,null,null,0,"%"]
[96,"E17-0054","Suministro y colocación a cualquier altura y nivel de  CODO de P.V.C. SANITARIO de 90° x 100 mm (4\") de diámetro CEMENTAR, incluye mano de obra, ranuras, fijación de la pieza donde se requiera y pruebas.","pza",4,null,null,0,"%"]
[97,"E17-0056","Suministro y colocación a cualquier altura y nivel de  CODO de P.V.C. SANITARIO de 45° x 50 mm (2\") de diámetro CEMENTAR, incluye mano de obra, ranuras, fijación de la pieza donde se requiera y pruebas.","pza",2,null,null,0,"%"]
[98,"E17-0058","Suministro y colocación a cualquier altura y nivel de  CODO de P.V.C. SANITARIO de 45° x 100 mm (4\") de diámetro  CEMENTAR, incluye mano de obra, ranuras, fijación de la pieza donde se requiera y pruebas.","pza",10,null,null,0,"%"]
[99,"E17-006","Suministro y colocación a cualquier altura y nivel de YEE SENCILLA de P.V.C. SANITARIO de 2\"x2\" (50x50 mm) CEMENTAR, incluye mano de obra, ranuras, fijación de la pieza donde se requiera y pruebas.","pza",4,null,null,0,"%"]
[100,"E17-0064","Suministro y colocación a cualquier altura y nivel de YEE SENCILLA de P.V.C. SANITARIO de 4\" x 4\" (100 x 100mm) CEMENTAR, incluye mano de obra, ranuras, fijación de la pieza donde se requiera y pruebas.","pza",8,null,null,0,"%"]
[101,"E17-0063","Suministro y colocación a cualquier altura y nivel de REDUCCIÓN EXCÉNTRICA BUSHING de P.V.C. SANITARIO de 4\" (100 mm) a 2\" (50 mm) CEMENTAR, incluye mano de obra, ranuras, fijación de la pieza donde se requiera y pruebas.","pza",4,null,null,0,"%"]
[102,"E17-0065","Suministro y colocación a cualquier altura y nivel de ADAPTADOR GAL ESPIGA de P.V.C. SANITARIO de 2\" (51mm) de diámetro  CEMENTAR, incluye mano de obra, ranuras, fijación de la pieza donde se requiera y pruebas.","pza",4,null,null,0,"%"]
[103,"E17-0081","Suministro y colocación a cualquier altura y nivel de  COPLE de P.V.C. SANITARIO de 50 mm (2\") de diámetro CEMENTAR, incluye mano de obra, ranuras, fijación de la pieza donde se requiera y pruebas.","pza",11,null,null,0,"%"]
[104,"E17-0067","Suministro y colocación a cualquier altura y nivel de  COPLE de P.V.C. SANITARIO de 100 mm (4\") de diámetro CEMENTAR, incluye mano de obra, ranuras, fijación de la pieza donde se requiera y pruebas.","pza",12,null,null,0,"%"]
[105,"E17-0102","Suministro y colocación a cualquier altura y nivel de TAPÓN REGISTRO de P.V.C. SANITARIO de 4\" (100 mm) y tapa de bronce, incluye mano de obra, ranuras, lubricante, fijación de la pieza donde se requiera y pruebas.","pza",12,null,null,0,"%"]
[106,"E17-0103","Suministro y colocación a cualquier nivel y altura de REMATE de VENTILACIÓN de P.V.C. SANITARIO de 2\" (50 mm) para CEMENTAR, incluye mano de obra, ranuras, lubricante, fijación de la pieza donde se requiera y pruebas.","pza",1,null,null,0,"%"]
[107,"E17-VAROSC01","Suministro y colocación a cualquier nivel y altura de VARILLA ROSCADA COMERCIAL de 3/8\" de acero galvanizado electrolíticamente (EN INSTALACIONES SANITARIAS), incluye cortes, desperdicios, ajustes y plomeos.","m",31.8,null,null,0,"%"]
[108,"E17-VAROSC02","Suministro y colocación a cualquier nivel y altura de VARILLA ROSCADA COMERCIAL de 1/2\" de acero galvanizado electrolíticamente (EN INSTALACIONES SANITARIAS), incluye cortes, desperdicios, ajustes y plomeos.","m",33.450000000000003,null,null,0,"%"]
[109,"E17-PERA01","Suministro y colocación a cualquier nivel y altura de COLGADOR metálico de BANDA TIPO PERA de 2\" acabado pregalvanizado (EN INSTALACIONES SANITARIAS), incluye tuercas para sujeción de varilla roscada de 3/8\", rondanas, taquetes de expansión para concreto duro y barreno con taladro.","pza",21,null,null,0,"%"]
["Nombre de la empresa",null,null,null,null,"Representante legal"]
[]
[110,"E17-PERA02","Suministro y colocación a cualquier nivel y altura de COLGADOR metálico de BANDA TIPO PERA de 4\" acabado pregalvanizado (EN INSTALACIONES SANITARIAS), incluye tuercas para sujeción de varilla roscada de 1/2\", rondanas, taquetes de expansión para concreto duro y barreno con taladro.","pza",11,null,null,{"$f":"E198*G198","v":0},"%"]
[null,null,null,null,null,"SUBTOTAL DE INSTALACIÓN SANITARIA:",null,{"$f":"SUM(H198)","v":0}]
[]
["PAR0009",null," INSTALACIÓN ELÉCTRICA E ILUMINACIÓN"]
[111,"E18-221","Suministro y tendido a cualquier nivel y altura de TUBO CONDUIT GALVANIZADO PARED DELGADA de 13 mm (1/2\"), incluye guía de alambre galvanizado calibre 14, roscas, dobleces, fijación de tubería y ranuras donde se requiera, desperdicios, pasos y todo lo necesario para su correcto funcionamiento.","m",109.7,null,null,{"$f":"E202*G202","v":0},"%"]
[112,"E18-2224","Suministro y tendido a cualquier nivel y altura de TUBO CONDUIT GALVANIZADA PARED DELGADA de 19 mm (3/4\"), incluye guía de alambre galvanizado calibre 14, roscas, dobleces, fijación de tubería y ranuras donde se requiera, desperdicios, pasos y todo lo necesario para su correcto funcionamiento.","m",186.66,null,null,0,"%"]
[113,"E18-0305","Suministro y tendido a cualquier nivel y altura de TUBO CONDUIT GALVANIZADO PARED DELGADA de 25 mm (1\"), incluye guía de alambre galvanizado calibre 14, roscas, dobleces, fijación de tubería y ranuras donde se requiera, desperdicios, pasos y todo lo necesario para su correcto funcionamiento.","m",22.34,null,null,0,"%"]
[114,"E18-0299","Suministro y tendido a cualquier nivel y altura de TUBO CONDUIT GALVANIZADO PARED DELGADA de 51 mm (2\"), incluye guía de alambre galvanizado calibre 14, roscas, dobleces, fijación de tubería y ranuras donde se requiera, desperdicios, pasos y todo lo necesario para su correcto funcionamiento.","m",4.95,null,null,0,"%"]
[115,"E18-2222","Suministro y colocación a cualquier nivel y altura de CODO CONDUIT GALVANIZADO PARED DELGADA de 1/2\" (13 mm) de diámetro, incluye fijación de la pieza y ranuras donde se requiera, desperdicios y todo lo necesario para su correcto funcionamiento.","pza",6,null,null,0,"%"]
[116,"E18-2226","Suministro y colocación a cualquier nivel y altura de CODO CONDUIT GALVANIZADA PARED DELGADA de 3/4\" (19 mm) de diámetro, incluye fijación de la pieza y ranuras donde se requiera, desperdicios y todo lo necesario para su correcto funcionamiento.","pza",19,null,null,0,"%"]
[117,"E18-0308","Suministro y colocación a cualquier nivel y altura de CODO CONDUIT GALVANIZADO PARED DELGADA de 1\" (25 mm) de diámetro, incluye fijación de la pieza y ranuras donde se requiera, desperdicios y todo lo necesario para su correcto funcionamiento.","pza",2,null,null,0,"%"]
[118,"E18-222","Suministro y colocación a cualquier nivel y altura de CONECTOR CONDUIT GALVANIZADO PARED DELGADA de 1/2\" (13 mm) de diámetro, incluye fijación de la pieza y ranuras donde se requiera, desperdicios y todo lo necesario para su correcto funcionamiento.","pza",150,null,null,0,"%"]
[119,"E18-2225","Suministro y colocación a cualquier nivel y altura de CONECTOR CONDUIT GALVANIZADA PARED DELGADA de 3/4\" (19 mm) de diámetro, incluye fijación de la pieza y ranuras donde se requiera, desperdicios y todo lo necesario para su correcto funcionamiento.","pza",106,null,null,0,"%"]
[120,"E18-0307","Suministro y colocación a cualquier nivel y altura de CONECTOR CONDUIT GALVANIZADA PARED DELGADA de 1\" (25 mm) de diámetro, incluye fijación de la pieza y ranuras donde se requiera, desperdicios y todo lo necesario para su correcto funcionamiento.","pza",6,null,null,0,"%"]
[121,"E18-029B","Suministro y colocación a cualquier nivel y altura de CONECTOR CONDUIT GALVANIZADO PARED DELGADA de 2\" (51 mm) de diámetro, incluye fijación de la pieza y ranuras donde se requiera, desperdicios y todo lo necesario para su correcto funcionamiento.","pza",2,null,null,0,"%"]
["Nombre de la empresa",null,null,null,null,"Representante legal"]
[]
[122,"E18-0313","Suministro y colocación a cualquier nivel y altura de CONECTOR para CABLE USO RUDO de 3 x 18, incluye fijación de la pieza y ranuras donde se requiera, desperdicios y todo lo necesario para su correcto funcionamiento.","pza",80,null,null,{"$f":"E215*G215","v":0},"%"]
[123,"E18-2221","Suministro y colocación a cualquier nivel y altura de COPLE  CONDUIT GALVANIZADA PARED DELGADA de 1/2\" (13 mm) de diámetro, incluye fijación de la pieza y ranuras donde se requiera, desperdicios y todo lo necesario para su correcto funcionamiento.","pza",67,null,null,0,"%"]
[124,"E18-2227","Suministro y colocación a cualquier nivel y altura de COPLE CONDUIT GALVANIZADA PARED DELGADA de 3/4\" (19 mm) de diámetro, incluye fijación de la pieza y ranuras donde se requiera, desperdicios y todo lo necesario para su correcto funcionamiento.","pza",114,null,null,0,"%"]
[125,"E18-0309","Suministro y colocación a cualquier nivel y altura de COPLE CONDUIT GALVANIZADA PARED DELGADA de 1\" (25 mm) de diámetro, incluye fijación de la pieza y ranuras donde se requiera, desperdicios y todo lo necesario para su correcto funcionamiento.","pza",14,null,null,0,"%"]
[126,"E18-029D","Suministro y colocación a cualquier nivel y altura de COPLE CONDUIT GALVANIZADA PARED DELGADA de 2\" (51 mm) de diámetro, incluye fijación de la pieza y ranuras donde se requiera, desperdicios y todo lo necesario para su correcto funcionamiento.","pza",1,null,null,0,"%"]
[127,"E18-2223","Suministro y colocación a cualquier nivel y altura de CAJA CUADRADA GALVANIZADA de 1/2\" (13 mm), incluye fijación de la pieza y ranuras donde se requiera, desperdicios y todo lo necesario para su correcto funcionamiento.","pza",43,null,null,0,"%"]
[128,"E18-2228","Suministro y colocación a cualquier nivel y altura de CAJA CUADRADA GALVANIZADA de 3/4\" (19 mm), incluye fijación de la pieza y ranuras donde se requiera, desperdicios y todo lo necesario para su correcto funcionamiento.","pza",48,null,null,0,"%"]
[129,"E18-222A","Suministro y colocación a cualquier nivel y altura de CAJA CUADRADA GALVANIZADA de 1\" (25 mm), incluye fijación de la pieza y ranuras donde se requiera, desperdicios y todo lo necesario para su correcto funcionamiento.","pza",3,null,null,0,"%"]
[130,"E18-2229","Suministro y colocación a cualquier nivel y altura de CHALUPA GALVANIZADA de 1/2\" (13 mm), incluye fijación de la pieza y ranuras donde se requiera, desperdicios y todo lo necesario para su correcto funcionamiento.","pza",26,null,null,0,"%"]
[131,"E18-0306","Suministro y colocación a cualquier nivel y altura de CAJA de ACERO INOXIDABLE para PISO marca THORSMAN modelo 11000-21201, incluye todo lo necesario para su fijación.","pza",1,null,null,0,"%"]
[132,"E18-0311","Suministro y colocación a cualquier nivel y altura de TAPA GALVANIZADA para caja cuadrada de 3/4\" (21mm) de diámetro, incluye fijación de la pieza y ranuras donde se requiera, desperdicios y todo lo necesario para su correcto funcionamiento.","pza",48,null,null,0,"%"]
[133,"E18-0318","Suministro y colocación a cualquier nivel y altura de TAPA GALVANIZADA para caja cuadrada de 1/2\" (13 mm) de diámetro, incluye fijación de la pieza y ranuras donde se requiera, desperdicios y todo lo necesario para su correcto funcionamiento.","pza",43,null,null,0,"%"]
[134,"E18-0310","Suministro y colocación a cualquier nivel y altura de TAPA GALVANIZADA para caja cuadrada de 1\" (25 mm) de diámetro, incluye fijación de la pieza y ranuras donde se requiera, desperdicios y todo lo necesario para su correcto funcionamiento.","pza",3,null,null,0,"%"]
[135,"E18-223","Suministro y tendido a cualquier nivel y altura de CABLE DE COBRE SUAVE THW-LS calibre 8 temperatura máxima de operación 90°C y tensión máxima de 600 volts, incluye cocas y desperdicios.","m",65.62,null,null,0,"%"]
[136,"E18-2231","Suministro y tendido a cualquier nivel y altura de CABLE DE COBRE SUAVE THW-LS calibre 10 temperatura máxima de operación 90°C y tensión máxima de 600 volts, incluye cocas y desperdicios.","m",164.03,null,null,0,"%"]
[137,"E18-0315","Suministro y tendido a cualquier nivel y altura de CABLE DE COBRE SUAVE THW-LS calibre 12 temperatura máxima de operación 90°C y tensión máxima de 600 volts, incluye cocas y desperdicios.","m",656.14,null,null,0,"%"]
["Nombre de la empresa",null,null,null,null,"Representante legal"]
[]
[138,"E18-2241","Suministro y tendido a cualquier nivel y altura de CABLE de COBRE DESNUDO calibre 12, incluye cocas y desperdicios.","m",218.71,null,null,{"$f":"E233*G233","v":0},"%"]
[139,"E18-0312","Suministro y tendido a cualquier nivel y altura de CORDÓN FLEXIBLE USO RUDO tipo SJO de 3 x 18, temperatura máxima de operación 90o C y un tensión máxima de 300 volts, incluye cocas y desperdicios.","m",105.6,null,null,0,"%"]
[140,"E18-0275A","Suministro y colocación de TABLERO de DISTRIBUCIÓN ensamblado marca SQUARE-D, catalogo NQ304AB225(F) de empotrar, Interruptor principal 225 ampers, 3 fases- 4 hilos, 240-120 VCA, 30 circuitos 10,000 ACI, incluye todo lo necesario para su fijación.","pza",1,null,null,0,"%"]
[141,"E18-559B","Suministro e instalación a cualquier nivel y altura de INTERRUPTOR TERMOMAGNÉTICO tipo Qo de 1 polo por 30 ampers marca SQUARE-D.","pza",10,null,null,0,"%"]
[142,"E18-559","Suministro e instalación a cualquier nivel y altura de INTERRUPTOR TERMOMAGNÉTICO tipo Qo de 1 polo por 15 ampers marca SQUARE-D.","pza",14,null,null,0,"%"]
[143,"E18-560","Suministro e instalación a cualquier nivel y altura de INTERRUPTOR TERMOMAGNÉTICO tipo Qo de 1 polo por 20 ampers marca SQUARE-D.","pza",4,null,null,0,"%"]
[144,"E18-5651","Suministro e instalación a cualquier nivel y altura de INTERRUPTOR TERMOMAGNÉTICO tipo Qo de 2 polos por 20 ampers marca SQUARE-D.","pza",1,null,null,0,"%"]
[145,"E18-650F","Suministro y colocación a cualquier nivel y altura de LUMINARIA de SOBREPONER clave L5023-1ID línea DOWNLIGHT  modelo DOMO 14 W marca MAGG, incluye lámpara led 4100 K, driver y todo lo necesario para su fijación.","pza",6,null,null,0,"%"]
[146,"E18-650H","Suministro y colocación a cualquier nivel y altura de LUMINARIA de EMPOTRAR 1 x 13 W clave L-1911-1GO línea DOWNLIGHT FLUORESCENTE modelo SHOT EXTRA MINI CENTER diámetro 175 mm marca MAGG,  incluye balastro electrónico, elaboración de hueco y refuerzo si es necesario en falso plafón, lámpara 13 W 6500 K y todo lo necesario para su fijación.","pza",16,null,null,0,"%"]
[147,"E18-674","Suministro y colocación a cualquier altura y nivel  de LUMINARIA DE EMPOTRAR 2 x 13 watts serie DOWNLIGHT FLUORESCENTE modelo FIT II CENTER marca MAGG calve L1935-1F0, incluye  balastro electrónico, lámparas, elaboración de hueco en falso plafón y todo lo necesario para su fijación.","pza",30,null,null,0,"%"]
[148,"E18-6505A","Suministro y colocación a cualquier nivel y altura de LUMINARIA KIT FIRE con RIEL y TRES LÁMPARAS 3x50 watts modelo L1850-110 marca MAGG, incluye lámparas halógenas, conector de aislamiento y todo lo necesario para su fijación.","pza",2,null,null,0,"%"]
[149,"E18-6505B","Suministro y colocación a cualquier nivel y altura de LUMINARIA BARATI con lámpara LED de CORTESÍA de EMPOTRAR en piso de acero inoxidable de 2 watts modelo HLED-645/2W/ACI marca TECNOLITE, incluye driver, lámpara led y todo lo necesario para su fijación.","pza",20,null,null,0,"%"]
[150,"E18-675A","Suministro y colocación a cualquier nivel y altura de LUMINARIA de EMPOTRAR 1 x 47 watts clave CO1200BBCD  modelo PERFORA PRO marca  CONSTRULITA,  incluye elaboración de hueco en falso plafón, lámpara led 47 watts y todo lo necesario para su fijación.","pza",12,null,null,0,"%"]
[151,"E18-0293","Suministro y colocación a cualquier nivel o altura de PLACA piloto o de 1,2 o 3 módulos línea QUINZIÑO MX marca Bticino serie BRILLANTES color según muestra aprobada , incluye todo lo necesario para su fijación.","pza",10,null,null,0,"%"]
[152,"E18-0295","Suministro y colocación a cualquier nivel o altura de CONTACTO o toma de corriente polarizada y aterrizada 2P+T marca Bticino código QZ5115DS línea QUINZIÑO MX, incluye pruebas y todo lo necesario para su fijación.","pza",15,null,null,0,"%"]
[153,"E18-0294","Suministro y colocación a cualquier nivel y altura de INTERRUPTOR SENCILLO 1 modulo marca Bticino línea QUINZIÑO MX código QZ5001, incluye pruebas y todo lo necesario para su fijación.","pza",7,null,null,0,"%"]
[154,"E18-035E","Suministro y colocación a cualquier nivel y altura de MODULO CIEGO código QZ5000 línea QUINZIÑO MX marca Bticino, incluye todo lo necesario para su fijación.","pza",2,null,null,0,"%"]
["Nombre de la empresa",null,null,null,null,"Representante legal"]
[]
[155,"E18-035F","Suministro y colocación a cualquier nivel y altura de REGULADOR de INTENSIDAD (DIMMER INDUCTIVO) código QZ5714 línea QUINZIÑO MX marca Bticino, incluye pruebas y todo lo necesario para su fijación.","pza",1,null,null,{"$f":"E252*G252","v":0},"%"]
[156,"E18-035H","Suministro y colocación a cualquier nivel y altura de INTERRUPTOR de 3 VÍAS marca Bticino línea QUINZIÑO MX código QZ5003, incluye pruebas y todo lo necesario para su fijación.","pza",4,null,null,0,"%"]
[157,"E18-820","Suministro y tendido a cualquier nivel y altura de CABLE DESNUDO DE COBRE para APARTARRAYOS 28 hilos clase II, calibre 58 mm, incluye cocas y desperdicios.","m",19.8,null,null,0,"%"]
[158,"E18-8205","Suministro y colocación de VARILLA COPPERWELD de 5/8\" x 3.00 m, incluye protocolo y penetración al suelo.","pza",4,null,null,0,"%"]
[159,"E18-8206","Suministro y colocación de REGISTRO ELÉCTRICO de fibra de vidrio y concreto polimérico de 32 cm de base y 27 cm de profundidad, incluye excavación, relleno y tapa de 24 cm de diámetro.","pza",4,null,null,0,"%"]
[160,"E18-8207","Suministro y colocación de INTENSIFICADOR de TIERRA (GEM), incluye preparación de la mezclado con agua acarreo y vaciado.","kg",6.6,null,null,0,"%"]
[161,"E18-8208","SOLDADURA EXOTÉRMICA a cualquier nivel y altura de CABLE HORIZONTAL de PASO 4/0 a una VARILLA de aterrizaje vertical COPPERWELD de 5/8\", incluye limpieza de conductores y varilla, molde, carga y vaciado de soldadura, equipo y retiro de molde.","pza",9,null,null,0,"%"]
[162,"E18-8209","Suministro y colocación a cualquier nivel y altura de ABRAZADERA de COBRE para CABLE DESNUDO 28 hilos calibre 58 mm2, incluye taquete y tornillo.","pza",4,null,null,0,"%"]
[163,"E18-820A","Suministro y colocación a cualquier nivel y altura de CONECTOR MECÁNICO RECTO para unir CABLE DESNUDO 28 hilos calibre 58 mm2.","pza",4,null,null,0,"%"]
[164,"E18-VAROSC01","Suministro y colocación a cualquier nivel y altura de VARILLA ROSCADA COMERCIAL de 3/8\" de acero galvanizado electrolíticamente (EN INSTALACIONES ELÉCTRICAS Y VOZ Y DATOS), incluye cortes, desperdicios, ajustes y plomeos.","m",237.34,null,null,0,"%"]
[165,"E18-PERA01","Suministro y colocación a cualquier nivel y altura de COLGADOR metálico de BANDA TIPO PERA de 1/2\" acabado pregalvanizado (EN INSTALACIONES ELÉCTRICAS Y VOZ Y DATOS), incluye tuercas para sujeción de varilla roscada de 3/8\", rondanas, taquetes de expansión para concreto duro y barreno con taladro.","pza",73,null,null,0,"%"]
[166,"E18-PERA02","Suministro y colocación a cualquier nivel y altura de COLGADOR metálico de BANDA TIPO PERA de 1\" acabado pregalvanizado (EN INSTALACIONES ELÉCTRICAS Y VOZ Y DATOS), incluye tuercas para sujeción de varilla roscada de 3/8\", rondanas, taquetes de expansión para concreto duro y barreno con taladro.","pza",15,null,null,0,"%"]
[167,"E18-PERA03","Suministro y colocación a cualquier nivel y altura de COLGADOR metálico de BANDA TIPO PERA de 3/4\" acabado pregalvanizado (EN INSTALACIONES ELÉCTRICAS Y VOZ Y DATOS), incluye tuercas para sujeción de varilla roscada de 3/8\", rondanas, taquetes de expansión para concreto duro y barreno con taladro.","pza",124,null,null,0,"%"]
[null,null,null,null,null,"SUBTOTAL DE  INSTALACIÓN ELÉCTRICA E ILUMINACIÓN:",null,{"$f":"SUM(H252:H264)","v":0}]
[]
["PAR0010",null," INSTALACIÓN DE VOZ Y DATOS"]
[168,"E18-0294A","Suministro y colocación de REGISTRO TELEFÓNICO de lámina galvanizada de 56x56x13 cm, Incluye todo lo necesario para su fijación.","pza",1,null,null,{"$f":"E268*G268","v":0},"%"]
[169,"E18-2224","Suministro y tendido a cualquier nivel y altura de TUBO CONDUIT GALVANIZADA PARED DELGADA de 19 mm (3/4\"), incluye guía de alambre galvanizado calibre 14, roscas, dobleces, fijación de tubería y ranuras donde se requiera, desperdicios, pasos y todo lo necesario para su correcto funcionamiento.","m",18.38,null,null,0,"%"]
["Nombre de la empresa",null,null,null,null,"Representante legal"]
[]
[170,"E18-0305","Suministro y tendido a cualquier nivel y altura de TUBO CONDUIT GALVANIZADO PARED DELGADA de 25 mm (1\"), incluye guía de alambre galvanizado calibre 14, roscas, dobleces, fijación de tubería y ranuras donde se requiera, desperdicios, pasos y todo lo necesario para su correcto funcionamiento.","m",15.4,null,null,{"$f":"E272*G272","v":0},"%"]
[171,"E18-0299","Suministro y tendido a cualquier nivel y altura de TUBO CONDUIT GALVANIZADO PARED DELGADA de 51 mm (2\"), incluye guía de alambre galvanizado calibre 14, roscas, dobleces, fijación de tubería y ranuras donde se requiera, desperdicios, pasos y todo lo necesario para su correcto funcionamiento.","m",9.5,null,null,0,"%"]
[172,"E18-2226","Suministro y colocación a cualquier nivel y altura de CODO CONDUIT GALVANIZADA PARED DELGADA de 3/4\" (19 mm) de diámetro, incluye fijación de la pieza y ranuras donde se requiera, desperdicios y todo lo necesario para su correcto funcionamiento.","pza",4,null,null,0,"%"]
[173,"E18-0308","Suministro y colocación a cualquier nivel y altura de CODO CONDUIT GALVANIZADO PARED DELGADA de 1\" (25 mm) de diámetro, incluye fijación de la pieza y ranuras donde se requiera, desperdicios y todo lo necesario para su correcto funcionamiento.","pza",3,null,null,0,"%"]
[174,"E18-029C","Suministro y colocación a cualquier nivel y altura de CODO CONDUIT GALVANIZADO PARED DELGADA de 2\" (51 mm) de diámetro, incluye fijación de la pieza y ranuras donde se requiera, desperdicios y todo lo necesario para su correcto funcionamiento.","pza",3,null,null,0,"%"]
[175,"E18-2225","Suministro y colocación a cualquier nivel y altura de CONECTOR CONDUIT GALVANIZADA PARED DELGADA de 3/4\" (19 mm) de diámetro, incluye fijación de la pieza y ranuras donde se requiera, desperdicios y todo lo necesario para su correcto funcionamiento.","pza",12,null,null,0,"%"]
[176,"E18-0307","Suministro y colocación a cualquier nivel y altura de CONECTOR CONDUIT GALVANIZADA PARED DELGADA de 1\" (25 mm) de diámetro, incluye fijación de la pieza y ranuras donde se requiera, desperdicios y todo lo necesario para su correcto funcionamiento.","pza",8,null,null,0,"%"]
[177,"E18-029B","Suministro y colocación a cualquier nivel y altura de CONECTOR CONDUIT GALVANIZADO PARED DELGADA de 2\" (51 mm) de diámetro, incluye fijación de la pieza y ranuras donde se requiera, desperdicios y todo lo necesario para su correcto funcionamiento.","pza",2,null,null,0,"%"]
[178,"E18-2227","Suministro y colocación a cualquier nivel y altura de COPLE CONDUIT GALVANIZADA PARED DELGADA de 3/4\" (19 mm) de diámetro, incluye fijación de la pieza y ranuras donde se requiera, desperdicios y todo lo necesario para su correcto funcionamiento.","pza",6,null,null,0,"%"]
[179,"E18-0309","Suministro y colocación a cualquier nivel y altura de COPLE CONDUIT GALVANIZADA PARED DELGADA de 1\" (25 mm) de diámetro, incluye fijación de la pieza y ranuras donde se requiera, desperdicios y todo lo necesario para su correcto funcionamiento.","pza",5,null,null,0,"%"]
[180,"E18-029D","Suministro y colocación a cualquier nivel y altura de COPLE CONDUIT GALVANIZADA PARED DELGADA de 2\" (51 mm) de diámetro, incluye fijación de la pieza y ranuras donde se requiera, desperdicios y todo lo necesario para su correcto funcionamiento.","pza",1,null,null,0,"%"]
[181,"E18-0317","Suministro y colocación a cualquier nivel y altura de TUBO CONDUIT de P.V.C. tipo PESADO de 2\" (50 mm), de diámetro, incluye guía de alambre galvanizado calibre 14, pegamento, fijación de tubería y ranuras donde se requiera, desperdicios y todo lo necesario para su correcto funcionamiento.","m",11,null,null,0,"%"]
[182,"E18-3256","Suministro y colocación a cualquier nivel y altura de CODO CONDUIT P.V.C. PESADO de 2\" (50 mm) de diámetro, incluye fijación de la pieza, ranuras donde se requiera y desperdicios.","pza",2,null,null,0,"%"]
[183,"E18-321B","Suministro y colocación a cualquier nivel y altura de CONECTOR CONDUIT P.V.C. PESADO de 2\" (50 mm) de diámetro, incluye fijación de la pieza, ranuras donde se requiera y desperdicios.","pza",4,null,null,0,"%"]
["Nombre de la empresa",null,null,null,null,"Representante legal"]
[]
[184,"E18-328E","Suministro y colocación a cualquier nivel y altura de COPLE CONDUIT P.V.C. PESADO de 2\" (50 mm) de diámetro, incluye fijación de la pieza, ranuras donde se requiera y desperdicios.","pza",4,null,null,{"$f":"E288*G288","v":0},"%"]
[185,"E18-2228","Suministro y colocación a cualquier nivel y altura de CAJA CUADRADA GALVANIZADA de 3/4\" (19 mm), incluye fijación de la pieza y ranuras donde se requiera, desperdicios y todo lo necesario para su correcto funcionamiento.","pza",2,null,null,0,"%"]
[186,"E18-222A","Suministro y colocación a cualquier nivel y altura de CAJA CUADRADA GALVANIZADA de 1\" (25 mm), incluye fijación de la pieza y ranuras donde se requiera, desperdicios y todo lo necesario para su correcto funcionamiento.","pza",2,null,null,0,"%"]
[187,"E18-029A","Suministro y colocación a cualquier nivel y altura de CAJA CUADRADA GALVANIZADA de 2\" (51 mm), incluye fijación de la pieza y ranuras donde se requiera, desperdicios y todo lo necesario para su correcto funcionamiento.","pza",2,null,null,0,"%"]
[188,"E18-2229","Suministro y colocación a cualquier nivel y altura de CHALUPA GALVANIZADA de 1/2\" (13 mm), incluye fijación de la pieza y ranuras donde se requiera, desperdicios y todo lo necesario para su correcto funcionamiento.","pza",4,null,null,0,"%"]
[189,"E18-SOBTAPA01","Suministro y colocación a cualquier nivel y altura de SOBRETAPA GALVANIZADA para caja cuadrada de 1\" (25 mm) de diámetro, incluye fijación de la pieza y ranuras donde se requiera, desperdicios y todo lo necesario para su correcto funcionamiento.","pza",2,null,null,0,"%"]
[190,"E18-0311A","Suministro y colocación a cualquier nivel y altura de SOBRETAPA GALVANIZADA para caja cuadrada de 3/4\" (21mm) de diámetro, incluye fijación de la pieza y ranuras donde se requiera, desperdicios y todo lo necesario para su correcto funcionamiento.","pza",2,null,null,0,"%"]
[191,"E18-029E","Suministro y colocación a cualquier nivel y altura de  TAPA GALVANIZADA para caja cuadrada de 2\" (51 mm) de diámetro, incluye fijación de la pieza y ranuras donde se requiera, desperdicios y todo lo necesario para su correcto funcionamiento.","pza",2,null,null,0,"%"]
[192,"E18-0293","Suministro y colocación a cualquier nivel o altura de PLACA piloto o de 1,2 o 3 módulos línea QUINZIÑO MX marca Bticino serie BRILLANTES color según muestra aprobada , incluye todo lo necesario para su fijación.","pza",4,null,null,0,"%"]
[193,"E18-VAROSC01","Suministro y colocación a cualquier nivel y altura de VARILLA ROSCADA COMERCIAL de 3/8\" de acero galvanizado electrolíticamente (EN INSTALACIONES ELÉCTRICAS Y VOZ Y DATOS), incluye cortes, desperdicios, ajustes y plomeos.","m",31.9,null,null,0,"%"]
[194,"E18-PERA02","Suministro y colocación a cualquier nivel y altura de COLGADOR metálico de BANDA TIPO PERA de 1\" acabado pregalvanizado (EN INSTALACIONES ELÉCTRICAS Y VOZ Y DATOS), incluye tuercas para sujeción de varilla roscada de 3/8\", rondanas, taquetes de expansión para concreto duro y barreno con taladro.","pza",12,null,null,0,"%"]
[195,"E18-PERA03","Suministro y colocación a cualquier nivel y altura de COLGADOR metálico de BANDA TIPO PERA de 3/4\" acabado pregalvanizado (EN INSTALACIONES ELÉCTRICAS Y VOZ Y DATOS), incluye tuercas para sujeción de varilla roscada de 3/8\", rondanas, taquetes de expansión para concreto duro y barreno con taladro.","pza",10,null,null,0,"%"]
[null,null,null,null,null,"SUBTOTAL DE  INSTALACIÓN DE VOZ Y DATOS:",null,{"$f":"SUM(H288:H299)","v":0}]
[]
["PAR0011",null,"ACABADOS Y RECUBRIMIENTOS"]
[196,"E12-1355","Suministro y colocación a cualquier nivel de PISO de LOSETA CERÁMICA marca INTERCERAMIC de 50 x 50 cm línea  DESERT en primera color según muestra aprobada, asentado con adhesivo para piso y junteado de 5 mm con  junteador color según muestra aprobada,  incluye materiales, mano de obra, desperdicio  y  el empleo de la herramienta necesaria.","m2",196.33,null,null,{"$f":"E303*G303","v":0},"%"]
["Nombre de la empresa",null,null,null,null,"Representante legal"]
[]
[197,"E12-1956","Suministro, corte, colocación y nivelación de ZOCLO a base de piso marca INTERCERAMIC calidad primera, modelo DESERT color  según muestra aprobada, de 10 cm de alto asentado con adhesivo para piso, incluye  junta  del mismo  color aprobado para el piso.","m",71.16,null,null,{"$f":"E306*G306","v":0},"%"]
[198,"E12-1837","Suministro y colocación a cualquier nivel y altura de LAMBRÍN de PISO de PORCELANATO PULIDO marca INTERCERAMIC de 60 x 60 cm línea VANTAGIO en primera color según muestra aprobada, asentado con pegaazulejo y junteado A HUESO con  junteador SIN ARENA color según muestra aprobada, incluye materiales, mano de obra, desperdicio y el empleo de la herramienta necesaria.","m2",84.15,null,null,0,"%"]
[199,"E22-PINTVI01","Suministro y aplicación a dos manos de PINTURA 100% ACRÍLICA mate para interiores o exteriores (5 años), trabajo terminado sobre muros, columnas y plafones, a cualquier altura y nivel, incluye sellador reforzado, rebabeo, resanes, limpieza de la superficie, boquillas y el equipo necesario.","m2",487.15,null,null,0,"%"]
[200,"E22-0431","Suministro y aplicación a cualquier altura y nivel de PINTURA de ESMALTE ALQUIDÁLICO ANTICORROSIVO a DOS MANOS trabajo terminado A UNA CARA con PISTOLA y COMPRESOR sobre HERRERÍA, incluye solvente adelgazador,  preparación y lijado de la superficie, andamios y todo lo necesario para la protección y limpieza del área de trabajo.","m2",111.44,null,null,0,"%"]
[null,null,null,null,null,"SUBTOTAL DE  ACABADOS Y RECUBRIMIENTOS:",null,{"$f":"SUM(H306:H309)","v":0}]
[]
["PAR0012",null,"COLOCACIONES"]
[201,"E14-405B","Suministro y colocación de COLADERA de 4\" de diámetro para piso con cúpula para azotea marca HELVEX modelo 444-X, incluye conector espiga de P.V.C. de 4\" (100 mm)","pza",3,null,null,{"$f":"E313*G313","v":0},"%"]
[202,"E14-400A","Suministro y colocación  a cualquier nivel de COLADERA para piso una boca con rejilla modelo 24-CH marca HELVEX.","pza",4,null,null,0,"%"]
[203,"E14-0021A","Suministro y colocación a cualquier nivel de INODORO ELONGADO y TANQUE marca AMERICAN STANDARD modelo CADET PRO RH EL de color blanco, incluye brida flexible, alimentador para inodoro de 1/2\", llave angular sin contratuerca, asiento de polipropileno virgen con agente antibacterial garantía de un año para inodoro elongado en color blanco, sellado con silicón antibacterial color blanco y todo lo necesario para su fijación.","pza",4,null,null,0,"%"]
[204,"E14-0802","Suministro y colocación a cualquier nivel de LAVABO BAJOCUBIERTA modelo OVALYN  marca AMERICAN STANDARD color blanco, incluye cespool de P.V.C. para lavabo, empaque de bastón, monomando MANTISS 4\" CROMO modelo E-92 marca HELVEX, sellado con silicón antibacterial y todo lo necesario para su fijación.","pza",4,null,null,0,"%"]
[205,"E14-0401","Suministro y colocación a cualquier nivel de MINGITORIO marca IDEAL STANDARD modelo NIAGARA color blanco, con entrada superior spud de 19 mm, incluye soportes, sellado con silicón antibacterial y todo lo necesario para su fijación.","pza",2,null,null,0,"%"]
[206,"E14-CUBMA02A","Suministro y colocación a cualquier nivel de CUBIERTA de una pieza de 2.30 m de largo por  0.60 m de ancho y 2 cm de espesor para 2 lavabos ovalin de bajo cubierta elaborada a base de  MÁRMOL tipo CAFE NACIONAL,  incluye sellado con silicón antibacterial, adherido de ovalines a cubierta, pulido y brillado de la cubierta en una de sus caras,  bisel en rededor de ovalines, taladros para mezcladora de 4\", zoclo de 1.00 m de longitud por 10 cm de altura en parte posterior, faldón de 30 cm al frente y moldura de 1/4 de boleo sencillo de 2 cm en  los frentes de las cubiertas y zoclos.","pza",2,null,null,0,"%"]
[207,"E14-0411","Suministro y colocación de FLUXÓMETRO RECTO BOTÓN para MINGITORIO con entrada de 1/2\" y salida de 3/4\" modelo 1319 marca URREA , incluye sellado de conexiones y todo lo necesario para su fijación.","pza",2,null,null,0,"%"]
["Nombre de la empresa",null,null,null,null,"Representante legal"]
[]
[208,"E16-4901","Suministro y colocación a cualquier nivel y altura de LLAVE DE NARIZ de 1/2\" (13 mm) con rosca para manguera figura 19","pza",2,null,null,{"$f":"E322*G322","v":0},"%"]
[209,"E14-0405","Suministro y colocación  a cualquier nivel de BARRA HOCKEY satinada para minusválidos marca HELVEX modelo B-064-S o B-062-S izquierda o derecha, incluye todo lo necesario para su fijación.","pza",1,null,null,0,"%"]
[210,"E14-0408","Suministro y colocación  a cualquier nivel de BARRA RECTA satinada para minusválidos marca HELVEX modelo B-700-S de 700 mm,  incluye todo lo necesario para su fijación.","pza",1,null,null,0,"%"]
[211,"E14-3601","Suministro y colocación  a cualquier nivel de DISPENSADOR de PAPEL HIGIÉNICO de acero inoxidable modelo MINI ACERO INOX PH21000, incluye todo lo necesario para su fijación.","pza",2,null,null,0,"%"]
[212,"E14-3621A","Suministro y colocación  a cualquier nivel de DOSIFICADOR de JABÓN RECARGABLE marca JOFEL modelo FUTURA INOX AC54000, incluye todo lo necesario para su fijación.","pza",2,null,null,0,"%"]
[213,"E14-3646","Suministro y colocación  a cualquier nivel de DESPACHADOR de TOALLA EN ROLLO para manos PALANCA ALTERA marca JOFEL modelo PT 61010, incluye todo lo necesario para su fijación.","pza",2,null,null,0,"%"]
[null,null,null,null,null,"SUBTOTAL DE COLOCACIONES:",null,{"$f":"SUM(H322:H327)","v":0}]
[]
["PAR0013",null,"ALUMINIO, VIDRIOS, DOMOS Y POLICARBONATO"]
[214,"E21-0081","Suministro y colocación a cualquier nivel de MAMPARA  para sanitarios de altura total de 1.80 m y separación de piso de 0.20 m elaborada a base de perfiles de aluminio anodizado natural  línea 2\" formando marcos con refuerzo superior horizontal, y tablero melamínico PANELART de 6 mm acabado texturizado, incluye herrajes, puertas, pasadores y  sellado y todo lo necesario para su fijación.","m2",20.79,null,null,{"$f":"E331*G331","v":0},"%"]
[215,"E21-0031A","Suministro y colocación a cualquier nivel y altura de CANCELERÍA de ALUMINIO anodizado natural líneas 2\", 3\" y 1.750\" en VENTANAS CORREDIZAS O CELOSÍA DE 2\" y CANCELES, incluye cristal claro de 6 mm de espesor, ESMERILADO (NO VINIL), chapas, herrajes, jaladeras, sellado con sellador acrílico y todo lo necesario para su fijación.","m2",3.42,null,null,0,"%"]
[216,"E21-PA001","Suministro y colocación a cualquier nivel y altura de PUERTA tipo P-01 de 2.30 m de alto x 1.80 m de largo A  DOS HOJAS elaborada a base de perfiles de aluminio línea 1.750\" anodizado natural y con DUELA LISA A 2 CARAS anodizado natural de 4.92\", incluye cierrapuertas regulable para 65 kg, perfil tapa bolsa lisa de 3\" 27316 para sujeción de persiana,  pivote centrado o descentrado, tope para puerta, chapa marca PHILLIPS modelo 575 MM, contramarco con perfiles de aluminio línea 3\", pasador de maroma, sellado con silicón grado arquitectónico y todo lo necesario para su fijación.","pza",1,null,null,0,"%"]
[217,"E21-PA002","Suministro y colocación a cualquier nivel y altura de PUERTA tipo P-02 de 2.30 m de alto x 1.10 m de largo elaborada a base de perfiles de aluminio línea 1.750\"  anodizado natural y tambor a base de DUELA LISA A 2 CARAS anodizado natural de 4.92\", incluye cierrapuertas regulable para 65 kg, pivote centrado o descentrado, tope para puerta, chapa marca PHILLIPS modelo 575 MM, contramarco con perfiles de aluminio línea 3\", sellado con silicón grado arquitectónico y todo lo necesario para su fijación.","pza",2,null,null,0,"%"]
[218,"E21-PA003","Suministro y colocación a cualquier nivel y altura de PUERTA tipo P-03 de 2.30 m de alto x 0.90 m de largo elaborada a base de perfiles de aluminio línea 1.750\"  anodizado natural y tambor a base de DUELA LISA A 2 CARAS anodizado natural de 4.92\", incluye cierrapuertas regulable para 65 kg, pivote centrado o descentrado, tope para puerta, chapa marca PHILLIPS modelo 575 MM, contramarco con perfiles de aluminio línea 3\", sellado con silicón grado arquitectónico y todo lo necesario para su fijación.","pza",1,null,null,0,"%"]
[219,null,null,null,null,"Representante legal"]
[]
[219,"E21-ESPE03","Suministro y colocación a cualquier nivel y altura de ESPEJO de cristal flotado  natural de 6 mm de espesor de 2.30 m de largo x 1.20 m de alto, incluye  sujeción con perfil de aluminio MARCO 2\" LIGERO línea baño de lujo anodizado natural.","pza",2,null,null,{"$f":"E338*G338","v":0},"%"]
[null,null,null,null,null,"SUBTOTAL DE ALUMINIO, VIDRIOS, DOMOS Y POLICARBONATO:",null,{"$f":"SUM(H338)","v":0}]
[]
["PAR0014",null,"HERRERÍA"]
[220,"E20-530A","Suministro, habilitado y colocación ESTRUCTURA METÁLICA DECORATIVA a cualquier nivel y altura elaborada a base de perfiles de acero estructural y comercial de NORMA ASTM, incluye trazo, nivelación y plomeo de estructura, placas de conexión, ángulos de apoyo, anclas, placas base, soldadura, descalibre, tejuelos, bisagras, jaladeras, pasadores, desperdicios y una mano de primario anticorrosivo aplicado en taller.","kg",707,null,null,{"$f":"E342*G342","v":0},"%"]
[221,"E21-0056","Suministro y colocación a cualquier nivel y altura de ESCALERA MARINA de 0.45 m de ancho y peldaños a cada 0.35 m centro a centro elaborada a base de tubo negro de 1\" (25 mm) cédula 30, incluye soldadura, primer anticorrosivo y todo lo necesario para su fijación.","m",3.9,null,null,0,"%"]
[222,"E20-119A","Suministro y colocación a cualquier nivel y altura de TAPA METÁLICA para registro en azotea de 1.14 x 0.87 m elaborada a base de ángulo de 1 1/4\" x 1/8\" en marco y ángulo 1\" x 1/8\" en contramarco y lamina negra calibre 18 en cubierta.","pza",1,null,null,0,"%"]
[223,"E20-0063","Suministro y colocación a cualquier nivel de PUERTA DE HERRERÍA tipo PH-02 para SALIDA de EMERGENCIA de auditorio de 1.20 m de largo x 3.00 m de alto, elaborada a base de lámina negra rolada en frio calibre 18, tambor a base de perfiles cuadrados de 38 mm calibre 18 C-150 y perfil rectangular de 38 mm x 100 mm calibre 18 R-400, incluye rolado de boquillas, nivelación, plomeo, cortes, soldadura, desperdicios,  marco con perfil tubular M-225, relleno de poliestireno expandido, base de primer anticorrosivo, bisagras de libro de uso pesado marca MONT HARD (FANAL), barra antipánico tipo universal en acero inoxidable sencilla de sobreponer con un punto de cierre y manija exterior para acceso con llave marca HERRALUM modelo 1059 y todo lo necesario para su fijación.","pza",1,null,null,0,"%"]
[null,null,null,null,null,"SUBTOTAL DE HERRERÍA:",null,{"$f":"SUM(H342:H345)","v":0}]
[]
["PAR0015",null,"CISTERNA"]
[224,"E06-002","EXCAVACIÓN A MANO en terreno tipo \"B\" en cepas de 0.00 a 2.00 m de profundidad,  incluye afine de taludes y traspaleo. (Medido compacto)","m3",47.39,null,null,{"$f":"E349*G349","v":0},"%"]
[226,"E05-0121","ACARREO de material producto de EXCAVACIÓN o ESCOMBRO fuera de la obra en camión de 7 m3 de  capacidad, incluye carga con MÁQUINA y descarga en banco de desperdicio a cualquier distancia. (Medido compacto)","m3",63.98,null,null,0,"%"]
[227,"E05-0260","COMPACTACIÓN de TERRENO NATURAL al 90% de su PVSM, utilizando compactador de placa vibratoria (bailarina).","m2",20.34,null,null,0,"%"]
[228,"E05-041","PLANTILLA de concreto simple f'c= 100 kg/cm2 de 6 cm de espesor, incluye cimbra común en fronteras y fabricación, vaciado, acarreo y picado de concreto.","m2",13.48,null,null,0,"%"]
[229,"E02-001","Suministro y colocación de ACERO de REFUERZO del No. 2 (1/4\") de diámetro fy= 2,530 kg/cm2 en CIMENTACIÓN, incluye  habilitado, armado, ganchos, dobleces,  traslapes,  silletas, desperdicio, alambre recocido, fletes y acarreo.","kg",25.51,null,null,0,"%"]
[230,"E02-003","Suministro y colocación de  ACERO de REFUERZO del No. 3 (3/8\") de diámetro fy= 4,200 kg/cm2 en CIMENTACIÓN, incluye habilitado, armado, ganchos, dobleces, traslapes, silletas, desperdicio, alambre recocido, fletes y acarreo.","kg",91.05,null,null,0,"%"]
[231,"E02-004","Suministro y colocación de  ACERO de REFUERZO del No. 4 (1/2\") de diámetro fy= 4,200 kg/cm2 en CIMENTACIÓN, incluye habilitado, armado, ganchos, dobleces, traslapes, silletas, desperdicio, alambre recocido, fletes y acarreo.","kg",64.87,null,null,0,"%"]
["Nombre de la empresa",null,null,null,null,"Representante legal"]
[]
[232,"E01-003","CIMBRA y descimbra en ZAPATAS y LOSAS de CIMENTACIÓN, acabado común con duela de madera de pino de 2a. y obra  falsa de madera de pino de 3a., medida por superficie de contacto, incluye materiales, mano de obra, habilitado, nivelado, desmoldante (no aceite quemado), desperdicios y cambio a la siguiente posición.","m2",17.71,null,null,{"$f":"E358*G358","v":0},"%"]
[233,"E01-072","CIMBRA de madera empleando tarima de 1.00 x 0.50 m y obra falsa de madera de pino de 3a.,  ACABADO COMÚN en LOSA medida por superficie de contacto a cualquier altura, incluye materiales, mano de obra, habilitado, desperdicio, nivelado, plomeo, descimbra, desmoldante (no aceite quemado), chaflanes y cambio a la siguiente posición.","m2",9.9,null,null,0,"%"]
[234,"E03-041","CONCRETO HECHO EN OBRA f'c= 250 kg/cm2 RESISTENCIA NORMAL empleando grava triturada, tamaño máximo del agregado  3/4\" en CIMENTACIÓN, revenimiento de 12 a 14 cm, incluye materiales, fabricación en revolvedora, acarreo y vaciado en carretilla, picado, vibrado y desperdicio.","m3",3.96,null,null,0,"%"]
[235,"E11-001","MURO de TABIQUE de barro rojo recocido 6-12-24 de 12 cm de espesor, asentado  con mezcla  mortero envasado-arena  1:3,  acabado común, cualquier altura y nivel, incluye acarreo de material a cualquier distancia.","m2",18.07,null,null,0,"%"]
[236,"E10-083","CADENA o CASTILLO de concreto f'c= 200 kg/cm2 de 15 x 20 cm armado con 4 varillas del No. 3 (3/8\") y estribos No. 2 (1/4\")  a cada 20 cm, incluye cimbra común, ganchos, traslapes, anclajes y cruces de varilla y fabricación, vaciado y picado de concreto.","m",15.36,null,null,0,"%"]
[237,"E13-020","REPELLADO a plomo y regla metálica con mortero cemento-arena  1:3, de 2 cm de espesor promedio a cualquier nivel y altura, incluye boquillas y elevación de materiales.","m2",27.65,null,null,0,"%"]
[238,"E13-087","Acabado PULIDO con pasta de cemento en muros de cisterna, incluye impermeabilizante integral 0.04 kg/kg de cemento gris.","m2",26.46,null,null,0,"%"]
[239,"E16-105","Suministro y colocación de TUBO de VENTILACIÓN de fierro galvanizado 2\" (50 mm) de diámetro por 0.90 m de alto, Incluye 2 codos, 2 niples, una tee y empotrado a losa de cisterna.","pza",1,null,null,0,"%"]
[240,"E14-168","Suministro y colocación de TAPA METÁLICA de 60 x 60 cm para registro de cisterna elaborada a base de ángulo de 1 1/2\" x 1/8\" en marco, ángulo de 1\" x 1/8\" en contramarco y lamina negra calibre 18 en cubierta,  incluye todo lo necesario para su fijación.","pza",1,null,null,0,"%"]
[241,"E15-1095","Suministro y aplicación a dos capas de IMPERMEABILIZANTE ECOLÓGICO cementoso con penetración al sustrato poroso de la cisterna a razón de 1 kg/m2 por capa , incluye preparación del producto, preparación y limpieza de la superficie con cepillo de alambre para abrir poro e integración de aditivo adherente emulsionado formulado a base de resina acrílica a la mezcla en proporción 1:3 con agua.","m2",26.46,null,null,0,"%"]
[242,"E16-4951","Suministro y colocación de BOMBA SUMERGIBLE de 1/2 H.P. marca EVANS modelo SSX1ME050F2C-F, incluye mano de obra y pruebas.","pza",1,null,null,0,"%"]
[243,"E16-460D","Suministro y tendido de TUBO de COBRE tipo \"M\" de 32 mm (1 1/4\") a cualquier nivel y altura, incluye mano de obra, ranuras, fijación de tubo, pasos y pruebas.","m",38.5,null,null,0,"%"]
[244,"E16-460C","Suministro y tendido de TUBO de COBRE tipo \"M\" de 25 mm (1\") a cualquier nivel y altura, incluye mano de obra, ranuras, fijación de tubo, pasos y pruebas.","m",25,null,null,0,"%"]
[245,"E16-4652","Suministro y colocación a cualquier nivel y altura de COPLE COBRE interior a cobre interior de 1 1/4\" (32 mm) de diámetro figura 700, incluye mano de obra, ranuras, fijación de la pieza donde se requiera, soldadura, pasta fundente, lija y pruebas.","pza",6,null,null,0,"%"]
[246,"E16-461C","Suministro y colocación a cualquier nivel y altura de COPLE COBRE interior a cobre interior de 1\" (25 mm) de diámetro figura 700 o 701, incluye mano de obra, ranuras, fijación de la pieza donde se requiera, soldadura, pasta fundente, lija y pruebas.","pza",4,null,null,0,"%"]
["Nombre de la empresa",null,null,null,null,"Representante legal"]
[]
[247,"E16-463A","Suministro y colocación a cualquier nivel y altura de CONECTOR COBRE interior a hierro exterior de 1 1/4\" (32 mm) de diámetro figura 704  , incluye mano de obra, ranuras, fijación de la pieza donde se requiera, soldadura, pasta fundente, lija y pruebas.","pza",1,null,null,{"$f":"E375*G375","v":0},"%"]
[248,"E16-463B","Suministro y colocación a cualquier nivel y altura de CODO de COBRE de 90°x1 1/4\" (32 mm) cobre interior a cobre interior figura 707-90°, incluye mano de obra, ranuras, fijación de la pieza donde se requiera, soldadura, pasta fundente, lija y pruebas.","pza",8,null,null,0,"%"]
[249,"E16-463C","Suministro y colocación a cualquier nivel y altura de TUERCA UNIÓN COBRE interior a cobre interior de 1 1/4\" (32 mm) figura 733 , incluye mano de obra, ranuras, fijación de la pieza donde se requiera, soldadura, pasta fundente, lija y pruebas.","pza",1,null,null,0,"%"]
[250,"E16-461B","Suministro y colocación a cualquier nivel y altura de CODO de COBRE de 90°x1\" (25 mm) cobre interior a cobre interior figura 707-90°, incluye mano de obra, ranuras, fijación de la pieza donde se requiera, soldadura, pasta fundente, lija y pruebas.","pza",2,null,null,0,"%"]
[251,"E16-4711","Suministro y colocación a cualquier nivel y altura de FLOTADOR de POLIURETANO de 8\" con varilla de latón de para tinaco.","pza",1,null,null,0,"%"]
[252,"E16-462B","Suministro y colocación a cualquier nivel y altura de VÁLVULA para FLOTADOR de 19 mm (3/4\")  figura 04, incluye mano de obra, ranuras, fijación de la pieza donde se requiera y pruebas.","pza",1,null,null,0,"%"]
[253,"E16-468","Suministro y colocación a cualquier nivel y altura de REDUCCIÓN BUSHING de COBRE de 1\" (25 mm) a 3/4\" (19 mm) cobre exterior a cobre  interior figura 7012, incluye mano de obra, ranuras, fijación de la pieza donde se requiera, soldadura, pasta fundente, lija y pruebas.","pza",1,null,null,0,"%"]
[254,"E18-2224","Suministro y tendido a cualquier nivel y altura de TUBO CONDUIT GALVANIZADA PARED DELGADA de 19 mm (3/4\"), incluye guía de alambre galvanizado calibre 14, roscas, dobleces, fijación de tubería y ranuras donde se requiera, desperdicios, pasos y todo lo necesario para su correcto funcionamiento.","m",35,null,null,0,"%"]
[255,"E18-2226","Suministro y colocación a cualquier nivel y altura de CODO CONDUIT GALVANIZADA PARED DELGADA de 3/4\" (19 mm) de diámetro, incluye fijación de la pieza y ranuras donde se requiera, desperdicios y todo lo necesario para su correcto funcionamiento.","pza",8,null,null,0,"%"]
[256,"E18-2228","Suministro y colocación a cualquier nivel y altura de CAJA CUADRADA GALVANIZADA de 3/4\" (19 mm), incluye fijación de la pieza y ranuras donde se requiera, desperdicios y todo lo necesario para su correcto funcionamiento.","pza",2,null,null,0,"%"]
[257,"E18-2225","Suministro y colocación a cualquier nivel y altura de CONECTOR CONDUIT GALVANIZADA PARED DELGADA de 3/4\" (19 mm) de diámetro, incluye fijación de la pieza y ranuras donde se requiera, desperdicios y todo lo necesario para su correcto funcionamiento.","pza",3,null,null,0,"%"]
[258,"E18-223","Suministro y tendido a cualquier nivel y altura de CABLE DE COBRE SUAVE THW-LS calibre 8 temperatura máxima de operación 90°C y tensión máxima de 600 volts, incluye cocas y desperdicios.","m",45,null,null,0,"%"]
[259,"E18-8094","Suministro y colocación de CONTROL AUTOMÁTICO para bomba sumergible marca EVANS modelo SUPER,  incluye todo lo necesario para su fijación y correcto funcionamiento.","pza",1,null,null,0,"%"]
[260,"E18-3213","Suministro y colocación a cualquier nivel  y altura de MANGA TERMOCONTRÁCTIL 12 a 6 AWG 1.20 m marca 3M","pza",1,null,null,0,"%"]
[261,"E50-002","LIMPIEZA FINAL de CISTERNA de 10 a 12 m3, incluye extracción de escombro y lavado general.","pza",1,null,null,0,"%"]
[null,null,null,null,null,"SUBTOTAL DE CISTERNA:",null,{"$f":"SUM(H375:H389)","v":0}]
[]
["Nombre de la empresa",null,null,null,null,"Representante legal"]
[]
["PAR0016",null,"ACOMETIDA ELÉCTRICA"]
[262,"E05-3011","Suministro y tendido de TUBO de POLIETILENO DE ALTA DENSIDAD (PAD) de 3\" (75 mm) de diámetro CORRUGADO para instalaciones eléctricas, incluye cortes, desperdicio y acarreo del material a cualquier distancia.","m",68.75,null,null,{"$f":"E395*G395","v":0},"%"]
[263,"E18-03315K","Suministro y tendido a cualquier nivel y altura de CABLE XLPE o PER 15 KV de ALUMINIO calibre 1/0, incluye cocas y desperdicios.","m",343.75,null,null,0,"%"]
[264,"E18-2246","Suministro y tendido a cualquier nivel y altura de CABLE de COBRE DESNUDO calibre 2, incluye cocas y desperdicios.","m",68.75,null,null,0,"%"]
[265,"E18-306","Suministro y colocación de ZAPATA BIMETÁLICA de DOBLE OJILLO para calibre 1/0.","pza",3,null,null,0,"%"]
[null,null,null,null,null,"SUBTOTAL DE ACOMETIDA ELÉCTRICA:",null,{"$f":"SUM(H395:H398)","v":0}]
[]
["PAR0017",null," LIMPIEZAS"]
[266,"E50-003","LIMPIEZA a detalle de PISOS de CEMENTO y CERÁMICO con cepillo, agua, ácido clorhídrico y/o jabón a cualquier nivel.","m2",570.29999999999995,null,null,{"$f":"E402*G402","v":0},"%"]
[267,"E50-004","LIMPIEZA a detalle de VIDRIOS y CRISTALES con agua, ácido clorhídrico y/o jabón por ambos lados a cualquier nivel y altura.","m2",15.55,null,null,0,"%"]
[268,"E50-006","LIMPIEZA a detalle de MUEBLES de BAÑO y/o cocina con agua y jabón en cualquier nivel.","pza",10,null,null,0,"%"]
[269,"E50-010","LIMPIEZA de RECUBRIMIENTO CERÁMICO o PORCELÁNICO SOBRE MUROS con cepillo, agua y ácido clorhídrico a cualquier nivel y altura.","m2",81.599999999999994,null,null,0,"%"]
[null,null,null,null,null,"SUBTOTAL DE  LIMPIEZAS:",null,{"$f":"SUM(H402:H405)","v":0}]
[]
["FTE 0002",null,"OBRA EXTERIOR"]
["PAR0018",null,"PRELIMINARES"]
[270,"E05-004","TRAZO y NIVELACIÓN de OBRAS EXTERIORES, considerando: plazas, andadores, arriates y jardinería incluye equipo de topografía y materiales para señalamiento.","m2",39.200000000000003,null,null,{"$f":"E410*G410","v":0},"%"]
[null,null,null,null,null,"SUBTOTAL DE  PRELIMINARES:",null,{"$f":"SUM(H410)","v":0}]
[]
["PAR0019",null,"CIMENTACIÓN"]
[271,"E06-005","EXCAVACIÓN a cielo abierto en  terreno tipo \"B\" zona \"A\" empleando MEDIOS MECÁNICOS, hasta profundidades de 2.50 m, incluye afine de taludes. (Medido compacto)","m3",27.45,null,null,{"$f":"E414*G414","v":0},"%"]
[272,"E06-002","EXCAVACIÓN A MANO en terreno tipo \"B\" en cepas de 0.00 a 2.00 m de profundidad,  incluye afine de taludes y traspaleo. (Medido compacto)","m3",2.5,null,null,0,"%"]
[273,"E05-0121","ACARREO de material producto de EXCAVACIÓN o ESCOMBRO fuera de la obra en camión de 7 m3 de  capacidad, incluye carga con MÁQUINA y descarga en banco de desperdicio a cualquier distancia. (Medido compacto)","m3",27.45,null,null,0,"%"]
[274,"E05-0260","COMPACTACIÓN de TERRENO NATURAL al 90% de su PVSM, utilizando compactador de placa vibratoria (bailarina).","m2",39.200000000000003,null,null,0,"%"]
[275,"E05-041","PLANTILLA de concreto simple f'c= 100 kg/cm2 de 6 cm de espesor, incluye cimbra común en fronteras y fabricación, vaciado, acarreo y picado de concreto.","m2",23.76,null,null,0,"%"]
[276,"E02-003","Suministro y colocación de  ACERO de REFUERZO del No. 3 (3/8\") de diámetro fy= 4,200 kg/cm2 en CIMENTACIÓN, incluye habilitado, armado, ganchos, dobleces, traslapes, silletas, desperdicio, alambre recocido, fletes y acarreo.","kg",249.99,null,null,0,"%"]
[277,"E01-003","CIMBRA y descimbra en ZAPATAS y LOSAS de CIMENTACIÓN, acabado común con duela de madera de pino de 2a. y obra  falsa de madera de pino de 3a., medida por superficie de contacto, incluye materiales, mano de obra, habilitado, nivelado, desmoldante (no aceite quemado), desperdicios y cambio a la siguiente posición.","m2",27.72,null,null,0,"%"]
["Nombre de la empresa",null,null,null,null,"Representante legal"]
[]
[278,"E03-041","CONCRETO HECHO EN OBRA f'c= 250 kg/cm2 RESISTENCIA NORMAL empleando grava triturada, tamaño máximo del agregado  3/4\" en CIMENTACIÓN, revenimiento de 12 a 14 cm, incluye materiales, fabricación en revolvedora, acarreo y vaciado en carretilla, picado, vibrado y desperdicio.","m3",4.75,null,null,{"$f":"E423*G423","v":0},"%"]
[279,"E11-3011","ENRASE con tabicón de concreto 8x12x26 cm de 12 cm de  espesor, asentado con mortero cemento-arena 1:4.","m2",13.86,null,null,0,"%"]
[280,"E10-085","CADENA o CASTILLO de concreto f'c= 200 kg/cm2 de 15 x 15 cm armado con 4 varillas del No. 3 (3/8\") y estribos del No. 2  (1/4\") a cada 15 cm, incluye cimbra común,  ganchos, traslapes, anclajes y cruces de varilla y fabricación, acarreo, vaciado y picado de concreto.","m",6.6,null,null,0,"%"]
[281,"E10-083","CADENA o CASTILLO de concreto f'c= 200 kg/cm2 de 15 x 20 cm armado con 4 varillas del No. 3 (3/8\") y estribos No. 2 (1/4\")  a cada 20 cm, incluye cimbra común, ganchos, traslapes, anclajes y cruces de varilla y fabricación, vaciado y picado de concreto.","m",39.6,null,null,0,"%"]
[282,"E05-0212","RELLENO y ACOMODO con pisón mecánico (bailarina) en capas de 20 cm utilizando  material de banco (FILTRO), incluye agua,  traspaleo, extendido y acarreo a una distancia de 20.00 m. (Medir compacto)","m3",24.64,null,null,0,"%"]
[283,"E05-0225","Suministro y RELLENO de material inerte para BASE HIDRÁULICA compactado al 95% de su PVSM con equipo mecánico en capas de 20 cm de espesor, incluye acarreo dentro de la obra, agua, papeos y extendido. Mezcla al 100% a base de material pétreo clasificado de 1 1/2\" a finos y tepetate en proporción 80:20. (Medir compacto)","m3",7.04,null,null,0,"%"]
[null,null,null,null,null,"SUBTOTAL DE CIMENTACIÓN:",null,{"$f":"SUM(H423:H428)","v":0}]
[]
["PAR0020",null,"ALBAÑILERÍA"]
[284,"E12-055","PISO de CONCRETO armado  f'c= 150 kg/cm2  de 10 cm  de espesor, armado con malla electrosoldada 66-1010, acabado PULIDO rayado y/o escobillado con cemento gris y juntas frías a hueso acabadas con volteador, incluye cimbra común en fronteras, nivelación, compactación y fabricación, acarreo, vaciado y extendido de concreto.","m2",35.200000000000003,null,null,{"$f":"E432*G432","v":0},"%"]
[285,"E10-0825","CONSTRUCCIÓN de NARIZ de concreto f'c= 150 kg/cm2, incluye solo cimbra aparente, chaflanes y acero 0.8 kg/ml para remate.","m",39.6,null,null,0,"%"]
[null,null,null,null,null,"SUBTOTAL DE ALBAÑILERÍA:",null,{"$f":"SUM(H432:H433)","v":0}]
[]
["PAR0021",null,"LIMPIEZAS"]
[286,"E50-003","LIMPIEZA a detalle de PISOS de CEMENTO y CERÁMICO con cepillo, agua, ácido clorhídrico y/o jabón a cualquier nivel.","m2",35.200000000000003,null,null,{"$f":"E437*G437","v":0},"%"]
[null,null,null,null,null,"SUBTOTAL DE LIMPIEZAS:",null,{"$f":"SUM(H437)","v":0}]
[]
[]
[]
[]
[]
[]
[]
[]
[]
[]
[]
[]
[]
[]
["Nombre de la empresa",null,null,null,null,"Representante legal"]